Publisher Label,Publisher URI,"Supplier","Net Amount (£)","Organisational Unit","Merchant Category Code","Purpose","Payment Date"
"Wolverhampton City Council","http://opendatacommunities.org/id/metropolitan-district-council/wolverhampton","ASDA SUPERSTORE","244","Upper Pendeford Farm Childrens Home","5411","Provisions (Not for resale)","29/04/16"
"Wolverhampton City Council","http://opendatacommunities.org/id/metropolitan-district-council/wolverhampton","ASDA STORES","104.03","Upper Pendeford Farm Childrens Home","5411","Provisions (Not for resale)","29/04/16"
"Wolverhampton City Council","http://opendatacommunities.org/id/metropolitan-district-council/wolverhampton","ASDA SUPERSTORE","52.48","Upper Pendeford Farm Childrens Home","5411","Provisions (Not for resale)","29/04/16"
"Wolverhampton City Council","http://opendatacommunities.org/id/metropolitan-district-council/wolverhampton","HUGHES","383.33","LAC Transitions Team","5732","Client Allowances","29/04/16"
"Wolverhampton City Council","http://opendatacommunities.org/id/metropolitan-district-council/wolverhampton","ARGOS LTD","-5","Private Sector Housing","5310","Equipment - Purchase","29/04/16"
"Wolverhampton City Council","http://opendatacommunities.org/id/metropolitan-district-council/wolverhampton","THE FRAMERS","105.5","Bantock House Museum","5970","Services - Professional Fees","29/04/16"
"Wolverhampton City Council","http://opendatacommunities.org/id/metropolitan-district-council/wolverhampton","ARGOS LTD","8.32","Private Sector Housing","5310","Equipment - Purchase","29/04/16"
"Wolverhampton City Council","http://opendatacommunities.org/id/metropolitan-district-council/wolverhampton","HOME BARGAINS","16.04","CIN/CP S17 SW Unit - Area 2","5251","Equipment - Purchase","29/04/16"
"Wolverhampton City Council","http://opendatacommunities.org/id/metropolitan-district-council/wolverhampton","NOVOTEL HOTELS","99.17","David Ward Exhibition - NPO ACE WAG","3642","Accommodation Costs","29/04/16"
"Wolverhampton City Council","http://opendatacommunities.org/id/metropolitan-district-council/wolverhampton","TRAINLINE","184.11","Strategic ICTS (ICT Serv Budget)","4112","Public Transport","29/04/16"
"Wolverhampton City Council","http://opendatacommunities.org/id/metropolitan-district-council/wolverhampton","Amazon UK Marketplace","10.59","Ground Maintenance Overheads","5942","Equipment - Purchase","29/04/16"
"Wolverhampton City Council","http://opendatacommunities.org/id/metropolitan-district-council/wolverhampton","Wix.com","46.57","Technical Support","5817","Computing - Purchase of Software","29/04/16"
"Wolverhampton City Council","http://opendatacommunities.org/id/metropolitan-district-council/wolverhampton","ASDA STORES","291","Upper Pendeford Farm Childrens Home","5411","Provisions (Not for resale)","29/04/16"
"Wolverhampton City Council","http://opendatacommunities.org/id/metropolitan-district-council/wolverhampton","Amazon EU","253.33","Landscape","5969","Computing - Purchase of Hardware","29/04/16"
"Wolverhampton City Council","http://opendatacommunities.org/id/metropolitan-district-council/wolverhampton","Amazon Svcs Europe,SAR","69.99","Technical Support","5942","Equipment - Purchase","29/04/16"
"Wolverhampton City Council","http://opendatacommunities.org/id/metropolitan-district-council/wolverhampton","B&M RETAIL LTD","2.47","Safeguarding Board - Childrens","5310","Equipment - Purchase","29/04/16"
"Wolverhampton City Council","http://opendatacommunities.org/id/metropolitan-district-council/wolverhampton","Amazon UK Marketplace","262.5","Landscape","5942","Computing - Purchase of Hardware","29/04/16"
"Wolverhampton City Council","http://opendatacommunities.org/id/metropolitan-district-council/wolverhampton","GETMAPPING PLC","15","Property Services - Building Maintenance","5999","Equipment - Purchase","28/04/16"
"Wolverhampton City Council","http://opendatacommunities.org/id/metropolitan-district-council/wolverhampton","ARGOS LTD","111.58","Upper Pendeford Farm Childrens Home","5310","Equipment - Purchase","28/04/16"
"Wolverhampton City Council","http://opendatacommunities.org/id/metropolitan-district-council/wolverhampton","GRO HM PASSPORT OFFICE","23.4","Legal Services","9399","Services - Fees and Charges","28/04/16"
"Wolverhampton City Council","http://opendatacommunities.org/id/metropolitan-district-council/wolverhampton","EE & T-MOBILE","135.36","Civic Halls Non Direct Management A/C","4814","Comms - Telephone Call charges","28/04/16"
"Wolverhampton City Council","http://opendatacommunities.org/id/metropolitan-district-council/wolverhampton","Amazon UK Marketplace","8.32","Ground Maintenance Overheads","5942","Materials","28/04/16"
"Wolverhampton City Council","http://opendatacommunities.org/id/metropolitan-district-council/wolverhampton","WEST COAST TRAINS","97.2","CIN/CP S17 SW Unit - Area 3B","4112","Public Transport","28/04/16"
"Wolverhampton City Council","http://opendatacommunities.org/id/metropolitan-district-council/wolverhampton","BOILERHOUSE BCLIVE16","95","Central Training","5734","Training Expenses","28/04/16"
"Wolverhampton City Council","http://opendatacommunities.org/id/metropolitan-district-council/wolverhampton","NAMESCO","20.14","City Direct","4816","Computing - Purchase of Software","28/04/16"
"Wolverhampton City Council","http://opendatacommunities.org/id/metropolitan-district-council/wolverhampton","HOLLYBUSH NURSERIES LT","79.17","Community Enablement","5261","Equipment - Purchase","28/04/16"
"Wolverhampton City Council","http://opendatacommunities.org/id/metropolitan-district-council/wolverhampton","HALFORDS 0775","52.45","Fleet Management","5940","Equipment - Purchase","28/04/16"
"Wolverhampton City Council","http://opendatacommunities.org/id/metropolitan-district-council/wolverhampton","BOILERHOUSE BCLIVE16","95","Central Training","5734","Training Expenses","28/04/16"
"Wolverhampton City Council","http://opendatacommunities.org/id/metropolitan-district-council/wolverhampton","TESCO STORES 5194","-2.9","Towers Outdoor Education Centre","5411","Provisions (Not for resale)","28/04/16"
"Wolverhampton City Council","http://opendatacommunities.org/id/metropolitan-district-council/wolverhampton","KINGFISHER MEDIA LTD","525","Art Gallery","7311","Marketing \ Non-staff advertising","28/04/16"
"Wolverhampton City Council","http://opendatacommunities.org/id/metropolitan-district-council/wolverhampton","BOILERHOUSE BCLIVE16","114","Central Training","5734","Training Expenses","28/04/16"
"Wolverhampton City Council","http://opendatacommunities.org/id/metropolitan-district-council/wolverhampton","UNI OF WOLVERHAMPT","300","LAC Transitions Team","8220","Accommodation Costs","28/04/16"
"Wolverhampton City Council","http://opendatacommunities.org/id/metropolitan-district-council/wolverhampton","POUNDLAND LTD 1463","8.33","Education And Access","5310","Equipment - Purchase","28/04/16"
"Wolverhampton City Council","http://opendatacommunities.org/id/metropolitan-district-council/wolverhampton","GRO HM PASSPORT OFFICE","-23.4","Legal Services","9399","Services - Fees and Charges","28/04/16"
"Wolverhampton City Council","http://opendatacommunities.org/id/metropolitan-district-council/wolverhampton","PARK MOBILE","5.33","Mayoral Expenses","7523","Parking Fees","28/04/16"
"Wolverhampton City Council","http://opendatacommunities.org/id/metropolitan-district-council/wolverhampton","CENTURY ELECTRICAL WHO","62.7","Priory Green","5065","R&M - Departmental planned (external)","28/04/16"
"Wolverhampton City Council","http://opendatacommunities.org/id/metropolitan-district-council/wolverhampton","WICKES","20.82","Northicote Farm","5211","Materials","28/04/16"
"Wolverhampton City Council","http://opendatacommunities.org/id/metropolitan-district-council/wolverhampton","WWW.CII.CO.UK","409","Central Training","8699","Training Expenses","28/04/16"
"Wolverhampton City Council","http://opendatacommunities.org/id/metropolitan-district-council/wolverhampton","WULFRUNA LOCKSMITH LTD","27.9","Head of Service - LAC","7251","Fixtures and Fittings - R&M","28/04/16"
"Wolverhampton City Council","http://opendatacommunities.org/id/metropolitan-district-council/wolverhampton","WIRE FM","1500","Civic Hall Administration Overhead Acct","7311","Marketing \ Non-staff advertising","28/04/16"
"Wolverhampton City Council","http://opendatacommunities.org/id/metropolitan-district-council/wolverhampton","B&M RETAIL LTD","24.91","Upper Pendeford Farm Childrens Home","5310","Equipment - Purchase","28/04/16"
"Wolverhampton City Council","http://opendatacommunities.org/id/metropolitan-district-council/wolverhampton","BOILERHOUSE BCLIVE16","170","Central Training","5734","Training Expenses","28/04/16"
"Wolverhampton City Council","http://opendatacommunities.org/id/metropolitan-district-council/wolverhampton","Amazon EU","32.47","LAC Education Team (LACE)","5969","Equipment - Purchase","28/04/16"
"Wolverhampton City Council","http://opendatacommunities.org/id/metropolitan-district-council/wolverhampton","LONDON MIDLAND ONB","9.6","Black Art Movement","4112","Public Transport","28/04/16"
"Wolverhampton City Council","http://opendatacommunities.org/id/metropolitan-district-council/wolverhampton","TRAINLINE","205.33","Delivery & OCE Development","4112","Public Transport","28/04/16"
"Wolverhampton City Council","http://opendatacommunities.org/id/metropolitan-district-council/wolverhampton","IKEA SACAT","25","Upper Pendeford Farm Childrens Home","5719","Equipment - Purchase","28/04/16"
"Wolverhampton City Council","http://opendatacommunities.org/id/metropolitan-district-council/wolverhampton","DVSA MOT COMP 2","102.5","Fleet Management","9399","Equipment - Purchase","28/04/16"
"Wolverhampton City Council","http://opendatacommunities.org/id/metropolitan-district-council/wolverhampton","ASDA HOME SHOPPING","-0.27","Ernest Bold Court","5411","Provisions (Not for resale)","27/04/16"
"Wolverhampton City Council","http://opendatacommunities.org/id/metropolitan-district-council/wolverhampton","Amazon UK Marketplace","11.34","Technical Support","5942","Equipment - Purchase","27/04/16"
"Wolverhampton City Council","http://opendatacommunities.org/id/metropolitan-district-council/wolverhampton","CENTRO HOUSE","1500","Travel Scratch Cards & Rail Warrants","4112","Public Transport","27/04/16"
"Wolverhampton City Council","http://opendatacommunities.org/id/metropolitan-district-council/wolverhampton","MARBLE ARCH HOTEL","-67.8","Delivery & OCE Development","7011","Accommodation Costs","27/04/16"
"Wolverhampton City Council","http://opendatacommunities.org/id/metropolitan-district-council/wolverhampton","G & M HALE (SUNDRIES)","15.8","Creative Studies Delivery Area","5992","Materials for resale","27/04/16"
"Wolverhampton City Council","http://opendatacommunities.org/id/metropolitan-district-council/wolverhampton","WWW.ICO.GOV.UK","35","Members Expenses","9399","Services - Fees and Charges","27/04/16"
"Wolverhampton City Council","http://opendatacommunities.org/id/metropolitan-district-council/wolverhampton","Amazon UK Marketplace","32.99","CIN - Referral Hub","5942","Equipment - Health and Safety","27/04/16"
"Wolverhampton City Council","http://opendatacommunities.org/id/metropolitan-district-council/wolverhampton","CENTURY ELECTRICAL WHO","11.7","Public Conveniences","5065","R&M - Departmental planned (external)","27/04/16"
"Wolverhampton City Council","http://opendatacommunities.org/id/metropolitan-district-council/wolverhampton","ARGOS LTD","59.99","CIN/CP S17 SW Unit - Area 3B","5310","Equipment - Purchase","27/04/16"
"Wolverhampton City Council","http://opendatacommunities.org/id/metropolitan-district-council/wolverhampton","ASDA SUPERSTORE","100","CIN/CP S17 SW Unit - Area 3B","5411","Provisions (Not for resale)","27/04/16"
"Wolverhampton City Council","http://opendatacommunities.org/id/metropolitan-district-council/wolverhampton","ASDA SUPERSTORE","84.27","CIN/CP S17 SW Unit - Area 5","5411","Provisions (Not for resale)","27/04/16"
"Wolverhampton City Council","http://opendatacommunities.org/id/metropolitan-district-council/wolverhampton","Virgintrains.co.uk","143.5","Fostering Team & Allowances","4112","Public Transport","27/04/16"
"Wolverhampton City Council","http://opendatacommunities.org/id/metropolitan-district-council/wolverhampton","B AND Q 1243","20.15","Art Gallery","5211","Materials","27/04/16"
"Wolverhampton City Council","http://opendatacommunities.org/id/metropolitan-district-council/wolverhampton","TFM FARM & COUNTRY SUP","82.92","Northicote Farm","5399","Equipment - Purchase","27/04/16"
"Wolverhampton City Council","http://opendatacommunities.org/id/metropolitan-district-council/wolverhampton","ROYAL CARPETS","283.33","LAC Transitions Team","5713","Client Allowances","27/04/16"
"Wolverhampton City Council","http://opendatacommunities.org/id/metropolitan-district-council/wolverhampton","G & M HALE LTD","88.3","Creative Studies Delivery Area","5992","Materials for resale","27/04/16"
"Wolverhampton City Council","http://opendatacommunities.org/id/metropolitan-district-council/wolverhampton","WWW.NISBETS.COM","137.77","Upper Pendeford Farm Childrens Home","5964","Equipment - Purchase","27/04/16"
"Wolverhampton City Council","http://opendatacommunities.org/id/metropolitan-district-council/wolverhampton","ASDA SUPERSTORE","21.96","CIN/CP Social Work Unit - Area 5","5411","Provisions (Not for resale)","27/04/16"
"Wolverhampton City Council","http://opendatacommunities.org/id/metropolitan-district-council/wolverhampton","G & M HALE LTD","103.55","Discretionary Fund","5992","Materials","27/04/16"
"Wolverhampton City Council","http://opendatacommunities.org/id/metropolitan-district-council/wolverhampton","WWW.ICO.GOV.UK","35","Members Expenses","9399","Subscriptions","27/04/16"
"Wolverhampton City Council","http://opendatacommunities.org/id/metropolitan-district-council/wolverhampton","ASDA SUPERSTORE","100","CIN/CP S17 SW Unit - Area 3B","5411","Provisions (Not for resale)","27/04/16"
"Wolverhampton City Council","http://opendatacommunities.org/id/metropolitan-district-council/wolverhampton","CUMMINGS BROTHERS LOCK","20","Condition Surveys","7399","Equipment - Purchase","27/04/16"
"Wolverhampton City Council","http://opendatacommunities.org/id/metropolitan-district-council/wolverhampton","CENTRO HOUSE","766.44","Banking","4112","Public Transport","27/04/16"
"Wolverhampton City Council","http://opendatacommunities.org/id/metropolitan-district-council/wolverhampton","FTPE WEBTIS 1","32","LAC Transitions Team","4112","Client Allowances","27/04/16"
"Wolverhampton City Council","http://opendatacommunities.org/id/metropolitan-district-council/wolverhampton","WP-POLYDRON UK LTD","319.2","Eduction Business Partnership","7399","Equipment - Purchase","27/04/16"
"Wolverhampton City Council","http://opendatacommunities.org/id/metropolitan-district-council/wolverhampton","ASDA HOME SHOPPING","77.92","Ernest Bold Court","5411","Provisions (Not for resale)","27/04/16"
"Wolverhampton City Council","http://opendatacommunities.org/id/metropolitan-district-council/wolverhampton","G & M HALE (SUNDRIES)","14.8","Discretionary Fund","5992","Materials","27/04/16"
"Wolverhampton City Council","http://opendatacommunities.org/id/metropolitan-district-council/wolverhampton","POST OFFICE COUNTER","58.75","LAC Team","9402","Comms - Postage","27/04/16"
"Wolverhampton City Council","http://opendatacommunities.org/id/metropolitan-district-council/wolverhampton","WWW.ICO.GOV.UK","35","Members Expenses","9399","Subscriptions","27/04/16"
"Wolverhampton City Council","http://opendatacommunities.org/id/metropolitan-district-council/wolverhampton","THE ABBEY HOTEL","8","LAC Team","7011","Services - Supplies & Services to users","27/04/16"
"Wolverhampton City Council","http://opendatacommunities.org/id/metropolitan-district-council/wolverhampton","VERIFONE TAXI/PRIVATE","5.94","Art Gallery","4121","Client Transport","27/04/16"
"Wolverhampton City Council","http://opendatacommunities.org/id/metropolitan-district-council/wolverhampton","ASDA HOME SHOPPING","43.33","Aldersley Leisure Village","5411","Equipment - Purchase","27/04/16"
"Wolverhampton City Council","http://opendatacommunities.org/id/metropolitan-district-council/wolverhampton","BOC GASES","189.08","The Little Civic","5169","Materials","27/04/16"
"Wolverhampton City Council","http://opendatacommunities.org/id/metropolitan-district-council/wolverhampton","Virgintrains.co.uk","120.65","Members Expenses","4112","Public Transport","27/04/16"
"Wolverhampton City Council","http://opendatacommunities.org/id/metropolitan-district-council/wolverhampton","Amazon UK Marketplace","45.99","Technical Support","5942","Equipment - Purchase","27/04/16"
"Wolverhampton City Council","http://opendatacommunities.org/id/metropolitan-district-council/wolverhampton","TVLICENSING.CO.UK","121.25","LAC Transitions Team","7392","Client Allowances","27/04/16"
"Wolverhampton City Council","http://opendatacommunities.org/id/metropolitan-district-council/wolverhampton","BOC GASES","349.21","Catering Overhead Account","5169","Materials","27/04/16"
"Wolverhampton City Council","http://opendatacommunities.org/id/metropolitan-district-council/wolverhampton","NETWORK WEST MIDLANDS","210","CIN/CP S17 SW Unit - Area 3A","9399","Client Transport","27/04/16"
"Wolverhampton City Council","http://opendatacommunities.org/id/metropolitan-district-council/wolverhampton","TESCO STORES 5194","266.35","Towers Outdoor Education Centre","5411","Provisions (Not for resale)","27/04/16"
"Wolverhampton City Council","http://opendatacommunities.org/id/metropolitan-district-council/wolverhampton","ASDA HOME SHOPPING","-2.08","Aldersley Leisure Village","5411","Equipment - Purchase","27/04/16"
"Wolverhampton City Council","http://opendatacommunities.org/id/metropolitan-district-council/wolverhampton","WWW.ICO.GOV.UK","35","Members Expenses","9399","Subscriptions","27/04/16"
"Wolverhampton City Council","http://opendatacommunities.org/id/metropolitan-district-council/wolverhampton","MARBLE ARCH HOTEL","-16.95","Delivery & OCE Development","7011","Accommodation Costs","27/04/16"
"Wolverhampton City Council","http://opendatacommunities.org/id/metropolitan-district-council/wolverhampton","CARD MARKET","3","Delivery & OCE Development","5947","Equipment - Purchase","27/04/16"
"Wolverhampton City Council","http://opendatacommunities.org/id/metropolitan-district-council/wolverhampton","ASDA HOME SHOPPING","89.47","Upper Pendeford Farm Childrens Home","5411","Provisions (Not for resale)","26/04/16"
"Wolverhampton City Council","http://opendatacommunities.org/id/metropolitan-district-council/wolverhampton","SAINSBURYS (2340)","-4","Discretionary Fund","5411","Provisions (Not for resale)","26/04/16"
"Wolverhampton City Council","http://opendatacommunities.org/id/metropolitan-district-council/wolverhampton","ASDA HOME SHOPPING","0.39","Upper Pendeford Farm Childrens Home","5411","Provisions (Not for resale)","26/04/16"
"Wolverhampton City Council","http://opendatacommunities.org/id/metropolitan-district-council/wolverhampton","SAIN WEDNESFIELD","150","46a, Second Avenue, Low Hill","6011","Services - Bank Charges","26/04/16"
"Wolverhampton City Council","http://opendatacommunities.org/id/metropolitan-district-council/wolverhampton","SAINSBURYS (2340)","98.5","Discretionary Fund","5411","Provisions (Not for resale)","26/04/16"
"Wolverhampton City Council","http://opendatacommunities.org/id/metropolitan-district-council/wolverhampton","POST OFFICE COUNTER","128","Fostering Team & Allowances","9402","Comms - Postage","26/04/16"
"Wolverhampton City Council","http://opendatacommunities.org/id/metropolitan-district-council/wolverhampton","WOLVES CC","181.25","CIN/CP S17 SW Unit - Area 5","9399","No Recourse to Public Funds","26/04/16"
"Wolverhampton City Council","http://opendatacommunities.org/id/metropolitan-district-council/wolverhampton","CUMMINGS BROTHERS LOCK","13.33","Caretakers Community Centre","7399","R&M - Departmental planned (external)","26/04/16"
"Wolverhampton City Council","http://opendatacommunities.org/id/metropolitan-district-council/wolverhampton","CT WOLVERHAMPTON","77.08","CIN/CP S17 SW Unit - Area 1","8398","Equipment - Purchase","26/04/16"
"Wolverhampton City Council","http://opendatacommunities.org/id/metropolitan-district-council/wolverhampton","UKDEEDPOLLO","15","LAC Admin Team","8111","Client Allowances","26/04/16"
"Wolverhampton City Council","http://opendatacommunities.org/id/metropolitan-district-council/wolverhampton","Virgintrains.co.uk","86.5","LAC Team","4112","Public Transport","26/04/16"
"Wolverhampton City Council","http://opendatacommunities.org/id/metropolitan-district-council/wolverhampton","REDWINGS LODGE","54.95","Emergency Duty Team","7011","Services - Supplies & Services to users","26/04/16"
"Wolverhampton City Council","http://opendatacommunities.org/id/metropolitan-district-council/wolverhampton","TRAINLINE","-48.1","Adoption and Residence Team & Allowances","4112","Public Transport","26/04/16"
"Wolverhampton City Council","http://opendatacommunities.org/id/metropolitan-district-council/wolverhampton","POLYBAGS LTD","269.33","Legal Services","5099","Equipment - Purchase","26/04/16"
"Wolverhampton City Council","http://opendatacommunities.org/id/metropolitan-district-council/wolverhampton","REDWINGS LODGE","8.33","CIN/CP S17 SW Unit - Area 7","7011","Services - Supplies & Services to users","26/04/16"
"Wolverhampton City Council","http://opendatacommunities.org/id/metropolitan-district-council/wolverhampton","WWW.DEVON.GOV.UK","10.5","LAC Team","8220","Services - Fees and Charges","26/04/16"
"Wolverhampton City Council","http://opendatacommunities.org/id/metropolitan-district-council/wolverhampton","LOYD WEDNESFIELD WOLVE","100","Duke Street Bungalows","6011","Public Transport","26/04/16"
"Wolverhampton City Council","http://opendatacommunities.org/id/metropolitan-district-council/wolverhampton","SAINSBURYS 2040","37.67","46a, Second Avenue, Low Hill","5411","Provisions (Not for resale)","26/04/16"
"Wolverhampton City Council","http://opendatacommunities.org/id/metropolitan-district-council/wolverhampton","ASDA SUPERSTORE","28.42","Upper Pendeford Farm Childrens Home","5411","Provisions (Not for resale)","26/04/16"
"Wolverhampton City Council","http://opendatacommunities.org/id/metropolitan-district-council/wolverhampton","Virgintrains.co.uk","-76.5","LAC Team","4112","Public Transport","26/04/16"
"Wolverhampton City Council","http://opendatacommunities.org/id/metropolitan-district-council/wolverhampton","LOYD WEDNESFIELD WOLVE","100","Duke Street Bungalows","6011","Room Hire","26/04/16"
"Wolverhampton City Council","http://opendatacommunities.org/id/metropolitan-district-council/wolverhampton","Amazon UK Marketplace","11.94","Technical Support","5942","Computing - Purchase of Software","26/04/16"
"Wolverhampton City Council","http://opendatacommunities.org/id/metropolitan-district-council/wolverhampton","BEATTIES","105","Delivery & OCE Development","5311","Equipment - Purchase","26/04/16"
"Wolverhampton City Council","http://opendatacommunities.org/id/metropolitan-district-council/wolverhampton","Wix.com","93.13","Technical Support","5817","Computing - Purchase of Software","25/04/16"
"Wolverhampton City Council","http://opendatacommunities.org/id/metropolitan-district-council/wolverhampton","THE POST OFFICE","176.25","LAC Team","9402","Services - Fees and Charges","25/04/16"
"Wolverhampton City Council","http://opendatacommunities.org/id/metropolitan-district-council/wolverhampton","FACEBOOK A49NR8EB92","5.13","Communications & Marketing - General","7311","Marketing \ Non-staff advertising","25/04/16"
"Wolverhampton City Council","http://opendatacommunities.org/id/metropolitan-district-council/wolverhampton","ASDA HOME SHOPPING","86.07","Ernest Bold Court","5411","Provisions (Not for resale)","25/04/16"
"Wolverhampton City Council","http://opendatacommunities.org/id/metropolitan-district-council/wolverhampton","FACEBOOK 949NR8EB92","594.89","Communications & Marketing - General","7311","Marketing \ Non-staff advertising","25/04/16"
"Wolverhampton City Council","http://opendatacommunities.org/id/metropolitan-district-council/wolverhampton","TVLICENSING.CO.UK","145.5","LAC Transitions Team","7392","Client Allowances","25/04/16"
"Wolverhampton City Council","http://opendatacommunities.org/id/metropolitan-district-council/wolverhampton","CT WOLVERHAMPTON","152","CIN/CP S17 SW Unit - Area 4","8398","No Recourse to Public Funds","25/04/16"
"Wolverhampton City Council","http://opendatacommunities.org/id/metropolitan-district-council/wolverhampton","CUMMINGS BROTHERS LOCK","5.83","Wholesale Market Facilities Management","7399","R&M - Departmental planned (external)","25/04/16"
"Wolverhampton City Council","http://opendatacommunities.org/id/metropolitan-district-council/wolverhampton","PREMIER INN 44536720","100.99","Fostering Team & Allowances","5812","Educ Trips, Holidays, Outings, Activity","25/04/16"
"Wolverhampton City Council","http://opendatacommunities.org/id/metropolitan-district-council/wolverhampton","W M MORRISONS.COM","208.32","Blakenhall Commty & Healthy Living Ctr","5411","Provisions (Resale)","25/04/16"
"Wolverhampton City Council","http://opendatacommunities.org/id/metropolitan-district-council/wolverhampton","Virgintrains.co.uk","18.8","Planning","4112","Public Transport","25/04/16"
"Wolverhampton City Council","http://opendatacommunities.org/id/metropolitan-district-council/wolverhampton","ASDA SUPERSTORE","100","CIN/CP S17 SW Unit - Area 5","5411","Provisions (Not for resale)","25/04/16"
"Wolverhampton City Council","http://opendatacommunities.org/id/metropolitan-district-council/wolverhampton","NOVOTEL HOTELS","70.83","David Ward Exhibition - NPO ACE WAG","3642","Accommodation Costs","25/04/16"
"Wolverhampton City Council","http://opendatacommunities.org/id/metropolitan-district-council/wolverhampton","BARCLAYS BANK PLC","250","CIN/CP S17 SW Unit - Area 5","6011","Financial Assistance In Exceptional Circ","25/04/16"
"Wolverhampton City Council","http://opendatacommunities.org/id/metropolitan-district-council/wolverhampton","EXPRESS & STAR","928","Civic Halls Non Direct Management A/C","5994","Marketing \ Non-staff advertising","25/04/16"
"Wolverhampton City Council","http://opendatacommunities.org/id/metropolitan-district-council/wolverhampton","MAILCHIMP","35.29","City Direct","7399","Equipment - Purchase","25/04/16"
"Wolverhampton City Council","http://opendatacommunities.org/id/metropolitan-district-council/wolverhampton","PREMIER INN","65.49","Fostering Team & Allowances","3811","Services - Supplies & Services to users","25/04/16"
"Wolverhampton City Council","http://opendatacommunities.org/id/metropolitan-district-council/wolverhampton","ASDA HOME SHOPPING","-0.12","Ernest Bold Court","5411","Provisions (Not for resale)","25/04/16"
"Wolverhampton City Council","http://opendatacommunities.org/id/metropolitan-district-council/wolverhampton","SAIN PENKRIDGE STONE C","250","CIN/CP S17 SW Unit - Area 6","6011","Financial Assistance In Exceptional Circ","25/04/16"
"Wolverhampton City Council","http://opendatacommunities.org/id/metropolitan-district-council/wolverhampton","ASDA STORES 4452","1.5","Swan Bank","5411","Provisions (Not for resale)","25/04/16"
"Wolverhampton City Council","http://opendatacommunities.org/id/metropolitan-district-council/wolverhampton","ASDA SUPERSTORE","25.45","Upper Pendeford Farm Childrens Home","5411","Provisions (Not for resale)","25/04/16"
"Wolverhampton City Council","http://opendatacommunities.org/id/metropolitan-district-council/wolverhampton","DRI TechSmith","125.3","Technical Support","5734","Computing - Purchase of Software","25/04/16"
"Wolverhampton City Council","http://opendatacommunities.org/id/metropolitan-district-council/wolverhampton","EB REIMAGINING FURTHE","350","AES Staff Development","7399","Training Expenses","25/04/16"
"Wolverhampton City Council","http://opendatacommunities.org/id/metropolitan-district-council/wolverhampton","WALSALL COUNCIL","32","Legal Services","9399","Services - Fees and Charges","25/04/16"
"Wolverhampton City Council","http://opendatacommunities.org/id/metropolitan-district-council/wolverhampton","PAYPAL  DRI NUANCE","36.4","CIN/CP Social Work Unit - Area 6","4816","Computing - Purchase of Software","25/04/16"
"Wolverhampton City Council","http://opendatacommunities.org/id/metropolitan-district-council/wolverhampton","REDWINGS LODGE","124.87","CIN/CP S17 SW Unit - Area 7","7011","Services - Supplies & Services to users","25/04/16"
"Wolverhampton City Council","http://opendatacommunities.org/id/metropolitan-district-council/wolverhampton","THE ABBEY HOTEL","40","LAC Team","7011","Services - Supplies & Services to users","25/04/16"
"Wolverhampton City Council","http://opendatacommunities.org/id/metropolitan-district-council/wolverhampton","BARCLAYS BANK PLC","250","CIN/CP S17 SW Unit - Area 5","6011","Financial Assistance In Exceptional Circ","25/04/16"
"Wolverhampton City Council","http://opendatacommunities.org/id/metropolitan-district-council/wolverhampton","E01510300000000","40","Emergency Duty Team","6011","Financial Assistance In Exceptional Circ","25/04/16"
"Wolverhampton City Council","http://opendatacommunities.org/id/metropolitan-district-council/wolverhampton","Virgintrains.co.uk","86.5","LAC Team","4112","Public Transport","25/04/16"
"Wolverhampton City Council","http://opendatacommunities.org/id/metropolitan-district-council/wolverhampton","WIX.COM","93.13","Technical Support","5734","Computing - Purchase of Software","25/04/16"
"Wolverhampton City Council","http://opendatacommunities.org/id/metropolitan-district-council/wolverhampton","THE FLOWER STALL","20.83","Mayoral Expenses","5992","Hospitality","25/04/16"
"Wolverhampton City Council","http://opendatacommunities.org/id/metropolitan-district-council/wolverhampton","Amazon UK Marketplace","23.75","Legal Services","5942","Books","25/04/16"
"Wolverhampton City Council","http://opendatacommunities.org/id/metropolitan-district-council/wolverhampton","NEXT RETAIL LTD","10","Mayoral Expenses","5651","Clothing / Uniforms","25/04/16"
"Wolverhampton City Council","http://opendatacommunities.org/id/metropolitan-district-council/wolverhampton","EB WV INSPIRED-CHARIT","32.84","WV Active Business Support","7399","Marketing \ Non-staff advertising","25/04/16"
"Wolverhampton City Council","http://opendatacommunities.org/id/metropolitan-district-council/wolverhampton","Amazon UK Marketplace","116.21","Legal Services","5942","Books","22/04/16"
"Wolverhampton City Council","http://opendatacommunities.org/id/metropolitan-district-council/wolverhampton","WWW.SIGNATURE.ORG.UK","49.99","Language Studies Delivery Area","8299","Training Expenses","22/04/16"
"Wolverhampton City Council","http://opendatacommunities.org/id/metropolitan-district-council/wolverhampton","Amazon Svcs Europe,SAR","47.04","Legal Services","5942","Books","22/04/16"
"Wolverhampton City Council","http://opendatacommunities.org/id/metropolitan-district-council/wolverhampton","CUMMINGS BROTHERS LOCK","4.17","Hickman Avenue Depot","7399","R&M - Departmental planned (external)","22/04/16"
"Wolverhampton City Council","http://opendatacommunities.org/id/metropolitan-district-council/wolverhampton","CUMMINGS BROTHERS LOCK","22.92","Caretakers Community Centre","7399","R&M - Departmental planned (external)","22/04/16"
"Wolverhampton City Council","http://opendatacommunities.org/id/metropolitan-district-council/wolverhampton","Amazon UK Marketplace","27.43","Aldersley Leisure Village","5942","Equipment - Purchase","22/04/16"
"Wolverhampton City Council","http://opendatacommunities.org/id/metropolitan-district-council/wolverhampton","ALDERSLEY LEISURE","0.01","Aldersley Leisure Village","8299","Equipment - R & M","22/04/16"
"Wolverhampton City Council","http://opendatacommunities.org/id/metropolitan-district-council/wolverhampton","Amazon UK Marketplace","22.08","Legal Services","5942","Books","22/04/16"
"Wolverhampton City Council","http://opendatacommunities.org/id/metropolitan-district-council/wolverhampton","Virgintrains.co.uk","124","Adoption and Residence Team & Allowances","4112","Public Transport","22/04/16"
"Wolverhampton City Council","http://opendatacommunities.org/id/metropolitan-district-council/wolverhampton","Virgintrains.co.uk","77.6","Agresso System Support","4112","Public Transport","22/04/16"
"Wolverhampton City Council","http://opendatacommunities.org/id/metropolitan-district-council/wolverhampton","STATIONERY OFFICE BOOK","127.75","Safeguarding Admin Resource","5942","Books","22/04/16"
"Wolverhampton City Council","http://opendatacommunities.org/id/metropolitan-district-council/wolverhampton","CENTRAL HOTEL","67.5","LAC Team","7011","Services - Supplies & Services to users","22/04/16"
"Wolverhampton City Council","http://opendatacommunities.org/id/metropolitan-district-council/wolverhampton","Virgintrains.co.uk","122.55","Adoption and Residence Team & Allowances","4112","Public Transport","22/04/16"
"Wolverhampton City Council","http://opendatacommunities.org/id/metropolitan-district-council/wolverhampton","WWW.TOOLSTATION.COM","4.04","Play General","5251","Equipment - Purchase","22/04/16"
"Wolverhampton City Council","http://opendatacommunities.org/id/metropolitan-district-council/wolverhampton","WWW.BRENTGOV.UK","10","CIN/CP S17 SW Unit - Area 4","9399","Services - Fees and Charges","22/04/16"
"Wolverhampton City Council","http://opendatacommunities.org/id/metropolitan-district-council/wolverhampton","Amazon UK Marketplace","24.39","Legal Services","5942","Books","22/04/16"
"Wolverhampton City Council","http://opendatacommunities.org/id/metropolitan-district-council/wolverhampton","IKEA ONLINE","128.33","LAC Transitions Team","5719","Client Allowances","22/04/16"
"Wolverhampton City Council","http://opendatacommunities.org/id/metropolitan-district-council/wolverhampton","Amazon UK Marketplace","33.93","Legal Services","5942","Books","22/04/16"
"Wolverhampton City Council","http://opendatacommunities.org/id/metropolitan-district-council/wolverhampton","B AND Q 1243","125.28","Art Gallery","5211","Materials","22/04/16"
"Wolverhampton City Council","http://opendatacommunities.org/id/metropolitan-district-council/wolverhampton","WWW.MAPLIN.CO.UK","62.48","David Ward Exhibition - NPO ACE WAG","5732","Equipment - Purchase","22/04/16"
"Wolverhampton City Council","http://opendatacommunities.org/id/metropolitan-district-council/wolverhampton","Amazon UK Marketplace","3.32","Children's Village Children Centre","5942","Equipment - Purchase","22/04/16"
"Wolverhampton City Council","http://opendatacommunities.org/id/metropolitan-district-council/wolverhampton","EBUYER (UK) LTD","240.21","Central Baths","5722","Equipment - Purchase","22/04/16"
"Wolverhampton City Council","http://opendatacommunities.org/id/metropolitan-district-council/wolverhampton","STAFFORD INDUSTRIAL SU","196.09","Play General","5085","Equipment - Purchase","22/04/16"
"Wolverhampton City Council","http://opendatacommunities.org/id/metropolitan-district-council/wolverhampton","RAPID ELECTRONICS TERM","36.81","Education And Access","5732","Equipment - Purchase","22/04/16"
"Wolverhampton City Council","http://opendatacommunities.org/id/metropolitan-district-council/wolverhampton","Amazon UK Marketplace","37.33","Legal Services","5942","Books","22/04/16"
"Wolverhampton City Council","http://opendatacommunities.org/id/metropolitan-district-council/wolverhampton","Amazon UK Marketplace","14.99","Learning Technologies","5942","Stationery","22/04/16"
"Wolverhampton City Council","http://opendatacommunities.org/id/metropolitan-district-council/wolverhampton","Amazon EU","162.48","Technical Support","5969","Equipment - Purchase","22/04/16"
"Wolverhampton City Council","http://opendatacommunities.org/id/metropolitan-district-council/wolverhampton","NATIONAL EXPRESS LIMIT","39.1","CIN/CP S17 SW Unit - Area 6","4131","Public Transport","22/04/16"
"Wolverhampton City Council","http://opendatacommunities.org/id/metropolitan-district-council/wolverhampton","WWW.NISBETS.COM","82.03","Upper Pendeford Farm Childrens Home","5964","Equipment - Purchase","22/04/16"
"Wolverhampton City Council","http://opendatacommunities.org/id/metropolitan-district-council/wolverhampton","WILKO RETAIL LIMIT","14.17","Children & Family Contact Services","5722","Cleaning Supplies and Materials","21/04/16"
"Wolverhampton City Council","http://opendatacommunities.org/id/metropolitan-district-council/wolverhampton","TESCO STORES 5503","7","Swan Bank","5411","Equipment - Purchase","21/04/16"
"Wolverhampton City Council","http://opendatacommunities.org/id/metropolitan-district-council/wolverhampton","PMC ELECTRICS LIMI","38.79","Parking Enforcement","4812","Equipment - Purchase","21/04/16"
"Wolverhampton City Council","http://opendatacommunities.org/id/metropolitan-district-council/wolverhampton","ASDA HOME SHOPPING","0.03","Ernest Bold Court","5411","Provisions (Not for resale)","21/04/16"
"Wolverhampton City Council","http://opendatacommunities.org/id/metropolitan-district-council/wolverhampton","WWW.THEWORKS.CO.UK","20","Central Baths","5942","Books","21/04/16"
"Wolverhampton City Council","http://opendatacommunities.org/id/metropolitan-district-council/wolverhampton","DIRECT BOOT","-0.01","Aldersley Leisure Village","5691","Equipment - R & M","21/04/16"
"Wolverhampton City Council","http://opendatacommunities.org/id/metropolitan-district-council/wolverhampton","POUNDSTRETCHER 147","6.65","Children & Family Contact Services","5714","Cleaning Supplies and Materials","21/04/16"
"Wolverhampton City Council","http://opendatacommunities.org/id/metropolitan-district-council/wolverhampton","SAINSBURYS SACAT 2040","10.33","Civic Centre Catering","5411","Provisions (Not for resale)","21/04/16"
"Wolverhampton City Council","http://opendatacommunities.org/id/metropolitan-district-council/wolverhampton","NOVOTEL HOTELS","232.5","Art Gallery","3642","Conference Expenses","21/04/16"
"Wolverhampton City Council","http://opendatacommunities.org/id/metropolitan-district-council/wolverhampton","WEST COAST TRAINS","78.6","CIN/CP S17 SW Unit - Area 3B","4112","Public Transport","21/04/16"
"Wolverhampton City Council","http://opendatacommunities.org/id/metropolitan-district-council/wolverhampton","PETS AT HOME LTD","22.57","Children & Family Contact Services","5995","Equipment - Purchase","21/04/16"
"Wolverhampton City Council","http://opendatacommunities.org/id/metropolitan-district-council/wolverhampton","THE RANGE","23.45","Swan Bank","5311","Equipment - Purchase","21/04/16"
"Wolverhampton City Council","http://opendatacommunities.org/id/metropolitan-district-council/wolverhampton","EXPEDIA 111721796370","69.95","Referral Team CIN - S17","4722","Public Transport","21/04/16"
"Wolverhampton City Council","http://opendatacommunities.org/id/metropolitan-district-council/wolverhampton","WWW.POSTURITE.CO.UK","27.95","City Direct","5021","Furniture","21/04/16"
"Wolverhampton City Council","http://opendatacommunities.org/id/metropolitan-district-council/wolverhampton","LIDL UK","63.93","Children & Family Contact Services","5411","Cleaning Supplies and Materials","21/04/16"
"Wolverhampton City Council","http://opendatacommunities.org/id/metropolitan-district-council/wolverhampton","THE INKDROP","25.99","MAST 3 - Graiseley","5045","Stationery","21/04/16"
"Wolverhampton City Council","http://opendatacommunities.org/id/metropolitan-district-council/wolverhampton","WWW.CARESHOP.CO.UK","33.58","Ernest Bold Court","5999","Materials","21/04/16"
"Wolverhampton City Council","http://opendatacommunities.org/id/metropolitan-district-council/wolverhampton","CARVER/WOLVERHAMPTON/L","14.16","Wholesale Market Facilities Management","5211","R&M - Departmental planned (external)","21/04/16"
"Wolverhampton City Council","http://opendatacommunities.org/id/metropolitan-district-council/wolverhampton","WWW.BULKPLUMBING.CO.UK","154.8","Art Gallery","5211","Materials","21/04/16"
"Wolverhampton City Council","http://opendatacommunities.org/id/metropolitan-district-council/wolverhampton","ASDA HOME SHOPPING","63.82","Ernest Bold Court","5411","Provisions (Not for resale)","21/04/16"
"Wolverhampton City Council","http://opendatacommunities.org/id/metropolitan-district-council/wolverhampton","ARGOS LTD","69.76","CIN/CP S17 SW Unit - Area 3B","5310","Equipment - Purchase","21/04/16"
"Wolverhampton City Council","http://opendatacommunities.org/id/metropolitan-district-council/wolverhampton","CLAREGATE S.STN FS408","12.5","Learning Disabilities Management","5541","Petrol","21/04/16"
"Wolverhampton City Council","http://opendatacommunities.org/id/metropolitan-district-council/wolverhampton","EVENTBRITE INC","-110","Public Health Support Costs","7399","Training Expenses","21/04/16"
"Wolverhampton City Council","http://opendatacommunities.org/id/metropolitan-district-council/wolverhampton","FACEBOOK MTV6F8NB92","-0.05","Communications & Marketing - General","7311","Marketing \ Non-staff advertising","21/04/16"
"Wolverhampton City Council","http://opendatacommunities.org/id/metropolitan-district-council/wolverhampton","Amazon Svcs Europe,SAR","140","Benefits","5942","Computing - Purchase of Hardware","21/04/16"
"Wolverhampton City Council","http://opendatacommunities.org/id/metropolitan-district-council/wolverhampton","TRAINLINE","105.57","LAC Admin Team","4112","Client Allowances","21/04/16"
"Wolverhampton City Council","http://opendatacommunities.org/id/metropolitan-district-council/wolverhampton","Amazon UK Marketplace","19.11","David Ward Exhibition - NPO ACE WAG","5942","Equipment - Purchase","21/04/16"
"Wolverhampton City Council","http://opendatacommunities.org/id/metropolitan-district-council/wolverhampton","Amazon EU","87.28","Children & Family Contact Services","5969","Equipment - Purchase","21/04/16"
"Wolverhampton City Council","http://opendatacommunities.org/id/metropolitan-district-council/wolverhampton","DUDLEY MET CNL ATP","-127.51","Legal Services","7999","Educ Trips, Holidays, Outings, Activity","21/04/16"
"Wolverhampton City Council","http://opendatacommunities.org/id/metropolitan-district-council/wolverhampton","Virgintrains.co.uk","52.4","Delivery & OCE Development","4112","Public Transport","21/04/16"
"Wolverhampton City Council","http://opendatacommunities.org/id/metropolitan-district-council/wolverhampton","TRAINLINE","203.39","Communications & Marketing - General","4112","Public Transport","21/04/16"
"Wolverhampton City Council","http://opendatacommunities.org/id/metropolitan-district-council/wolverhampton","GRO HM PASSPORT OFFICE","-23.4","Legal Services","9399","Services - Fees and Charges","21/04/16"
"Wolverhampton City Council","http://opendatacommunities.org/id/metropolitan-district-council/wolverhampton","WWW.ICO.GOV.UK","35","Register Office","9399","Services - Fees and Charges","20/04/16"
"Wolverhampton City Council","http://opendatacommunities.org/id/metropolitan-district-council/wolverhampton","TESCO STORES 5194","256.99","Towers Outdoor Education Centre","5411","Provisions (Not for resale)","20/04/16"
"Wolverhampton City Council","http://opendatacommunities.org/id/metropolitan-district-council/wolverhampton","ARGOS RETAIL GROUP","104.15","LAC Transitions Team","5310","Client Allowances","20/04/16"
"Wolverhampton City Council","http://opendatacommunities.org/id/metropolitan-district-council/wolverhampton","MARBLE ARCH HOTEL","33.9","Delivery & OCE Development","7011","Accommodation Costs","20/04/16"
"Wolverhampton City Council","http://opendatacommunities.org/id/metropolitan-district-council/wolverhampton","GRO HM PASSPORT OFFICE","46.8","Legal Services","9399","Services - Fees and Charges","20/04/16"
"Wolverhampton City Council","http://opendatacommunities.org/id/metropolitan-district-council/wolverhampton","ASDA HOME SHOPPING","4.17","Upper Pendeford Farm Childrens Home","5411","Provisions (Not for resale)","20/04/16"
"Wolverhampton City Council","http://opendatacommunities.org/id/metropolitan-district-council/wolverhampton","MARBLE ARCH HOTEL","314.18","Delivery & OCE Development","7011","Accommodation Costs","20/04/16"
"Wolverhampton City Council","http://opendatacommunities.org/id/metropolitan-district-council/wolverhampton","Amazon UK Marketplace","439.94","Technical Support","5942","Equipment - Purchase","20/04/16"
"Wolverhampton City Council","http://opendatacommunities.org/id/metropolitan-district-council/wolverhampton","POST OFFICE COUNTER","64","MAST 5 - Valley Park","9402","Comms - Postage","20/04/16"
"Wolverhampton City Council","http://opendatacommunities.org/id/metropolitan-district-council/wolverhampton","SAINSBURYS SACAT (2340","5.5","Mayoral Expenses","5411","Hospitality","20/04/16"
"Wolverhampton City Council","http://opendatacommunities.org/id/metropolitan-district-council/wolverhampton","POST OFFICE COUNTER","238","Adoption and Residence Team & Allowances","9402","Comms - Postage","20/04/16"
"Wolverhampton City Council","http://opendatacommunities.org/id/metropolitan-district-council/wolverhampton","G & M HALE (SUNDRIES)","15.39","Creative Studies Delivery Area","5992","Materials for resale","20/04/16"
"Wolverhampton City Council","http://opendatacommunities.org/id/metropolitan-district-council/wolverhampton","MARBLE ARCH HOTEL","16.95","Delivery & OCE Development","7011","Accommodation Costs","20/04/16"
"Wolverhampton City Council","http://opendatacommunities.org/id/metropolitan-district-council/wolverhampton","TRAINLINE","87.92","LAC Team","4112","Public Transport","20/04/16"
"Wolverhampton City Council","http://opendatacommunities.org/id/metropolitan-district-council/wolverhampton","FACEBOOK 9RJCT8WA92","14.97","Communications & Marketing - General","7311","Marketing \ Non-staff advertising","20/04/16"
"Wolverhampton City Council","http://opendatacommunities.org/id/metropolitan-district-council/wolverhampton","WEST COAST TRAINS","185","Welfare Rights","4112","Public Transport","20/04/16"
"Wolverhampton City Council","http://opendatacommunities.org/id/metropolitan-district-council/wolverhampton","G & M HALE LTD","77.8","Creative Studies Delivery Area","5992","Materials for resale","20/04/16"
"Wolverhampton City Council","http://opendatacommunities.org/id/metropolitan-district-council/wolverhampton","Virgintrains.co.uk","42.15","Public Health Support Costs","4112","Public Transport","20/04/16"
"Wolverhampton City Council","http://opendatacommunities.org/id/metropolitan-district-council/wolverhampton","PAYPAL  INCITEPUBLI","190","Communications & Marketing - General","8931","Services - Professional Fees","20/04/16"
"Wolverhampton City Council","http://opendatacommunities.org/id/metropolitan-district-council/wolverhampton","Amazon EU","18.96","LAC Admin Team","5969","Client Allowances","20/04/16"
"Wolverhampton City Council","http://opendatacommunities.org/id/metropolitan-district-council/wolverhampton","CAR PARKING OFFICE","17.3","Work Related Studies","7523","Car Allowances","20/04/16"
"Wolverhampton City Council","http://opendatacommunities.org/id/metropolitan-district-council/wolverhampton","TESCO DELIVERY SAVER2","2.5","Towers Outdoor Education Centre","5968","Provisions (Not for resale)","20/04/16"
"Wolverhampton City Council","http://opendatacommunities.org/id/metropolitan-district-council/wolverhampton","POST OFFICE COUNTER","17.1","Assessment Team (North)","9402","Comms - Postage","20/04/16"
"Wolverhampton City Council","http://opendatacommunities.org/id/metropolitan-district-council/wolverhampton","WEST COAST TRAINS","143","Delivery & OCE Development","4112","Public Transport","20/04/16"
"Wolverhampton City Council","http://opendatacommunities.org/id/metropolitan-district-council/wolverhampton","FACEBOOK 8RJCT8WA92","585.08","Communications & Marketing - General","7311","Marketing \ Non-staff advertising","20/04/16"
"Wolverhampton City Council","http://opendatacommunities.org/id/metropolitan-district-council/wolverhampton","WEST MID TRAVEL","829.1","Banking","4131","Public Transport","20/04/16"
"Wolverhampton City Council","http://opendatacommunities.org/id/metropolitan-district-council/wolverhampton","SPAR SIOP TANDDERWEN","130.08","Towers Outdoor Education Centre","5411","Provisions (Not for resale)","20/04/16"
"Wolverhampton City Council","http://opendatacommunities.org/id/metropolitan-district-council/wolverhampton","G & M HALE (SUNDRIES)","11.2","Discretionary Fund","5992","Materials","20/04/16"
"Wolverhampton City Council","http://opendatacommunities.org/id/metropolitan-district-council/wolverhampton","CHILD POVERTY","92.5","Central Training","8398","Training Expenses","20/04/16"
"Wolverhampton City Council","http://opendatacommunities.org/id/metropolitan-district-council/wolverhampton","Amazon UK Marketplace","23.99","Commissioning Disabilities","5942","Equipment - Purchase","20/04/16"
"Wolverhampton City Council","http://opendatacommunities.org/id/metropolitan-district-council/wolverhampton","ARGOS RETAIL GROUP","301.61","LAC Transitions Team","5310","Client Allowances","20/04/16"
"Wolverhampton City Council","http://opendatacommunities.org/id/metropolitan-district-council/wolverhampton","WEST COAST TRAINS","16.6","City Direct","4112","Public Transport","20/04/16"
"Wolverhampton City Council","http://opendatacommunities.org/id/metropolitan-district-council/wolverhampton","TRAINLINE","151.27","Adoption and Residence Team & Allowances","4112","Public Transport","20/04/16"
"Wolverhampton City Council","http://opendatacommunities.org/id/metropolitan-district-council/wolverhampton","FUEL CARD SERVICES LTD","245.24","Towers Outdoor Education Centre","7399","Petrol","20/04/16"
"Wolverhampton City Council","http://opendatacommunities.org/id/metropolitan-district-council/wolverhampton","EB MANMADE THE CONFER","110","Public Health Support Costs","7399","Training Expenses","20/04/16"
"Wolverhampton City Council","http://opendatacommunities.org/id/metropolitan-district-council/wolverhampton","ARGOS RETAIL GROUP","99.99","LAC Transitions Team","5310","Client Allowances","20/04/16"
"Wolverhampton City Council","http://opendatacommunities.org/id/metropolitan-district-council/wolverhampton","PARTONS BUILDING SUPPL","39.6","Safeguarding Board - Adults","5211","R&M - Departmental planned (external)","20/04/16"
"Wolverhampton City Council","http://opendatacommunities.org/id/metropolitan-district-council/wolverhampton","CUMMINGS BROTHERS LOCK","8.33","Caretakers Community Centre","7399","R&M - Departmental planned (external)","20/04/16"
"Wolverhampton City Council","http://opendatacommunities.org/id/metropolitan-district-council/wolverhampton","G & M HALE LTD","79.95","Discretionary Fund","5992","Materials","20/04/16"
"Wolverhampton City Council","http://opendatacommunities.org/id/metropolitan-district-council/wolverhampton","TAHDAH VERIFIED","75","Towers Outdoor Education Centre","5734","Equipment - Purchase","20/04/16"
"Wolverhampton City Council","http://opendatacommunities.org/id/metropolitan-district-council/wolverhampton","BRITANNIA","131","CIN/CP S17 SW Unit - Area 6","7011","Accommodation Costs","20/04/16"
"Wolverhampton City Council","http://opendatacommunities.org/id/metropolitan-district-council/wolverhampton","ADMIRAL SELF STORAGE L","106.89","CIN/CP S17 SW Unit - Area 5","4225","Storage","19/04/16"
"Wolverhampton City Council","http://opendatacommunities.org/id/metropolitan-district-council/wolverhampton","ASDA HOME SHOPPING","0.74","Upper Pendeford Farm Childrens Home","5411","Provisions (Not for resale)","19/04/16"
"Wolverhampton City Council","http://opendatacommunities.org/id/metropolitan-district-council/wolverhampton","WISEPOPSCOM","35.69","City Direct","7372","Computing - Purchase of Software","19/04/16"
"Wolverhampton City Council","http://opendatacommunities.org/id/metropolitan-district-council/wolverhampton","ASDA SUPERSTORE","8","Ernest Bold Court","5411","Provisions (Not for resale)","19/04/16"
"Wolverhampton City Council","http://opendatacommunities.org/id/metropolitan-district-council/wolverhampton","SAINSBURYS (2340)","38.4","Physical & Sensory Disabilities Mgmt","5411","Provisions (Not for resale)","19/04/16"
"Wolverhampton City Council","http://opendatacommunities.org/id/metropolitan-district-council/wolverhampton","MONA LIFTING LTD","106.6","Towers Outdoor Education Centre","8911","Equipment - Purchase","19/04/16"
"Wolverhampton City Council","http://opendatacommunities.org/id/metropolitan-district-council/wolverhampton","NATWEST BANK","200","Children's Village Children Centre","6011","Equipment - Purchase","19/04/16"
"Wolverhampton City Council","http://opendatacommunities.org/id/metropolitan-district-council/wolverhampton","Wix.com","16.26","Technical Support","5817","Computing - Purchase of Software","19/04/16"
"Wolverhampton City Council","http://opendatacommunities.org/id/metropolitan-district-council/wolverhampton","GREEN FLAG WEB PCW","53.72","Fleet Management","7549","Equipment - Purchase","19/04/16"
"Wolverhampton City Council","http://opendatacommunities.org/id/metropolitan-district-council/wolverhampton","WULFRUN WOOLS & CRAFTS","8.98","Swan Bank","5947","Equipment - Purchase","19/04/16"
"Wolverhampton City Council","http://opendatacommunities.org/id/metropolitan-district-council/wolverhampton","DUDLEY MBC  INTERN","127.51","Legal Services","8999","Services - Professional Fees","19/04/16"
"Wolverhampton City Council","http://opendatacommunities.org/id/metropolitan-district-council/wolverhampton","DOD`S PARLIAMENTARY CO","270","School Improvement","7399","Conference Expenses","19/04/16"
"Wolverhampton City Council","http://opendatacommunities.org/id/metropolitan-district-council/wolverhampton","AUTHORISED/PAGE PU","1100","Education Catering - General Overheads","2741","Publications","19/04/16"
"Wolverhampton City Council","http://opendatacommunities.org/id/metropolitan-district-council/wolverhampton","ROYAL CARPETS","75","CIN/CP S17 SW Unit - Area 3B","5713","Equipment - Purchase","19/04/16"
"Wolverhampton City Council","http://opendatacommunities.org/id/metropolitan-district-council/wolverhampton","ASDA SUPERSTORE","120","Ernest Bold Court","5411","Printing","19/04/16"
"Wolverhampton City Council","http://opendatacommunities.org/id/metropolitan-district-council/wolverhampton","Virgintrains.co.uk","106","Information Governance Team","4112","Public Transport","19/04/16"
"Wolverhampton City Council","http://opendatacommunities.org/id/metropolitan-district-council/wolverhampton","ARGOS LTD","39.99","Children's Village Children Centre","5310","Equipment - Purchase","19/04/16"
"Wolverhampton City Council","http://opendatacommunities.org/id/metropolitan-district-council/wolverhampton","SAIN ST MARKS","250","Physical & Sensory Disabilities Mgmt","6011","Financial Assistance In Exceptional Circ","19/04/16"
"Wolverhampton City Council","http://opendatacommunities.org/id/metropolitan-district-council/wolverhampton","SAINSBURYS (2340)","85.7","Discretionary Fund","5411","Provisions (Not for resale)","19/04/16"
"Wolverhampton City Council","http://opendatacommunities.org/id/metropolitan-district-council/wolverhampton","B&M RETAIL","198.22","LAC Transitions Team","5310","Client Allowances","19/04/16"
"Wolverhampton City Council","http://opendatacommunities.org/id/metropolitan-district-council/wolverhampton","SAINSBURYS (2340)","85.39","Civic Centre Catering","5411","Provisions (Not for resale)","19/04/16"
"Wolverhampton City Council","http://opendatacommunities.org/id/metropolitan-district-council/wolverhampton","Amazon UK Marketplace","20.99","Technical Support","5942","Equipment - Purchase","19/04/16"
"Wolverhampton City Council","http://opendatacommunities.org/id/metropolitan-district-council/wolverhampton","ASDA HOME SHOPPING","95.85","Upper Pendeford Farm Childrens Home","5411","Provisions (Not for resale)","19/04/16"
"Wolverhampton City Council","http://opendatacommunities.org/id/metropolitan-district-council/wolverhampton","WOLVES FC","288","Learning Technologies","7997","Educ Trips, Holidays, Outings, Activity","19/04/16"
"Wolverhampton City Council","http://opendatacommunities.org/id/metropolitan-district-council/wolverhampton","ASDA 4387","42","CIN/CP S17 SW Unit - Area 5","5411","Provisions (Not for resale)","19/04/16"
"Wolverhampton City Council","http://opendatacommunities.org/id/metropolitan-district-council/wolverhampton","Amazon UK Marketplace","19.99","Global Budgets","5942","Stationery","19/04/16"
"Wolverhampton City Council","http://opendatacommunities.org/id/metropolitan-district-council/wolverhampton","MANCHESTER CITY COUNCI","1500","HRA General","9399","Services - Professional Fees","19/04/16"
"Wolverhampton City Council","http://opendatacommunities.org/id/metropolitan-district-council/wolverhampton","HALFORDS 0775","162","Central Baths","5940","Equipment - Purchase","19/04/16"
"Wolverhampton City Council","http://opendatacommunities.org/id/metropolitan-district-council/wolverhampton","THE NEW BRIDGE GUEST H","22","Emergency Duty Team","7011","Services - Supplies & Services to users","18/04/16"
"Wolverhampton City Council","http://opendatacommunities.org/id/metropolitan-district-council/wolverhampton","Amazon EU","41.66","Technical Support","5969","Computing - Purchase of Hardware","18/04/16"
"Wolverhampton City Council","http://opendatacommunities.org/id/metropolitan-district-council/wolverhampton","EXPRESS & STAR","2058.2","Civic Halls Non Direct Management A/C","5994","Marketing \ Non-staff advertising","18/04/16"
"Wolverhampton City Council","http://opendatacommunities.org/id/metropolitan-district-council/wolverhampton","Virgintrains.co.uk","8","Children & Young People Support Costs","4112","Public Transport","18/04/16"
"Wolverhampton City Council","http://opendatacommunities.org/id/metropolitan-district-council/wolverhampton","THE NEW BRIDGE GUEST H","40","Emergency Duty Team","7011","Services - Supplies & Services to users","18/04/16"
"Wolverhampton City Council","http://opendatacommunities.org/id/metropolitan-district-council/wolverhampton","THE FLOWER STALL","104.17","Mayoral Expenses","5992","Hospitality","18/04/16"
"Wolverhampton City Council","http://opendatacommunities.org/id/metropolitan-district-council/wolverhampton","HOME BARGAINS","26.4","Mayoral Expenses","5251","Hospitality","18/04/16"
"Wolverhampton City Council","http://opendatacommunities.org/id/metropolitan-district-council/wolverhampton","ITUNES.COM/BILL","0.79","Civic Halls Non Direct Management A/C","5735","Computing - Purchase of Software","18/04/16"
"Wolverhampton City Council","http://opendatacommunities.org/id/metropolitan-district-council/wolverhampton","Amazon EU","232.5","Technical Support","5969","Equipment - Purchase","18/04/16"
"Wolverhampton City Council","http://opendatacommunities.org/id/metropolitan-district-council/wolverhampton","Amazon UK Marketplace","40.96","Pupil Premium","5942","Equipment - Purchase","18/04/16"
"Wolverhampton City Council","http://opendatacommunities.org/id/metropolitan-district-council/wolverhampton","OYSTER RENEW WEB","20","Legal Services","4112","Public Transport","18/04/16"
"Wolverhampton City Council","http://opendatacommunities.org/id/metropolitan-district-council/wolverhampton","TRAINLINE","66.3","Strategic ICTS (ICT Serv Budget)","4112","Public Transport","18/04/16"
"Wolverhampton City Council","http://opendatacommunities.org/id/metropolitan-district-council/wolverhampton","REDWINGS LODGE","209.85","CIN/CP S17 SW Unit - Area 6","7011","Accommodation Costs","18/04/16"
"Wolverhampton City Council","http://opendatacommunities.org/id/metropolitan-district-council/wolverhampton","POST OFFICE COUNTER","2.06","CIN/CP Social Work Unit - Area 6","9402","Comms - Postage","18/04/16"
"Wolverhampton City Council","http://opendatacommunities.org/id/metropolitan-district-council/wolverhampton","PRZCHARGE.PREZI.COM","111.45","Members Expenses","5045","Computing - Purchase of Hardware","18/04/16"
"Wolverhampton City Council","http://opendatacommunities.org/id/metropolitan-district-council/wolverhampton","ARGOS LTD","167.41","LAC Transitions Team","5310","Client Allowances","18/04/16"
"Wolverhampton City Council","http://opendatacommunities.org/id/metropolitan-district-council/wolverhampton","Virgintrains.co.uk","119.75","LAC Team","4112","Public Transport","18/04/16"
"Wolverhampton City Council","http://opendatacommunities.org/id/metropolitan-district-council/wolverhampton","Amazon UK Marketplace","17.98","Technical Support","5942","Equipment - Purchase","18/04/16"
"Wolverhampton City Council","http://opendatacommunities.org/id/metropolitan-district-council/wolverhampton","Amazon UK Marketplace","27.9","School Crossing Patrol","5942","Equipment - Purchase","18/04/16"
"Wolverhampton City Council","http://opendatacommunities.org/id/metropolitan-district-council/wolverhampton","WWW.UCAS.COM","19.17","24+ Advanced Learning Loan","8220","Services - Fees and Charges","18/04/16"
"Wolverhampton City Council","http://opendatacommunities.org/id/metropolitan-district-council/wolverhampton","SAINSBURYS SACAT 2040","8","Ernest Bold Court","5411","Provisions (Not for resale)","18/04/16"
"Wolverhampton City Council","http://opendatacommunities.org/id/metropolitan-district-council/wolverhampton","Amazon UK Marketplace","2.39","MAST 1 - Deansfield","5942","Books","18/04/16"
"Wolverhampton City Council","http://opendatacommunities.org/id/metropolitan-district-council/wolverhampton","Amazon UK Marketplace","3.44","MAST 1 - Deansfield","5942","Books","18/04/16"
"Wolverhampton City Council","http://opendatacommunities.org/id/metropolitan-district-council/wolverhampton","ASDA HOME SHOPPING","-0.14","Ernest Bold Court","5411","Provisions (Not for resale)","18/04/16"
"Wolverhampton City Council","http://opendatacommunities.org/id/metropolitan-district-council/wolverhampton","B&M RETAIL LTD","20.4","LAC Transitions Team","5310","Client Allowances","18/04/16"
"Wolverhampton City Council","http://opendatacommunities.org/id/metropolitan-district-council/wolverhampton","PAYPAL  ALISON","17.36","Technical Support","8220","Training Expenses","18/04/16"
"Wolverhampton City Council","http://opendatacommunities.org/id/metropolitan-district-council/wolverhampton","Amazon UK Marketplace","34.99","Technical Support","5942","Computing - Purchase of Hardware","18/04/16"
"Wolverhampton City Council","http://opendatacommunities.org/id/metropolitan-district-council/wolverhampton","SAINSBURYS SACAT (2340","20.65","Mayoral Expenses","5411","Hospitality","18/04/16"
"Wolverhampton City Council","http://opendatacommunities.org/id/metropolitan-district-council/wolverhampton","Amazon EU","37.5","Technical Support","5969","Equipment - Purchase","18/04/16"
"Wolverhampton City Council","http://opendatacommunities.org/id/metropolitan-district-council/wolverhampton","ACE EMBROIDERY LTD","79","Mayoral Expenses","1799","Clothing / Uniforms","18/04/16"
"Wolverhampton City Council","http://opendatacommunities.org/id/metropolitan-district-council/wolverhampton","Amazon UK Marketplace","11.98","Technical Support","5942","Computing - Purchase of Hardware","18/04/16"
"Wolverhampton City Council","http://opendatacommunities.org/id/metropolitan-district-council/wolverhampton","JACKS CAFE AND BAR","22.5","Upper Pendeford Farm Childrens Home","5499","Catering","18/04/16"
"Wolverhampton City Council","http://opendatacommunities.org/id/metropolitan-district-council/wolverhampton","Virgintrains.co.uk","282","Strategic Asset Management - General","4112","Public Transport","18/04/16"
"Wolverhampton City Council","http://opendatacommunities.org/id/metropolitan-district-council/wolverhampton","Amazon EU","41.65","Technical Support","5969","Computing - Purchase of Hardware","18/04/16"
"Wolverhampton City Council","http://opendatacommunities.org/id/metropolitan-district-council/wolverhampton","VERIFONE TAXI/PRIVATE","8.8","CIN/CP S17 SW Unit - Area 6","4121","Client Transport","18/04/16"
"Wolverhampton City Council","http://opendatacommunities.org/id/metropolitan-district-council/wolverhampton","ALDI","20.47","Children's Village Nursery","5411","School Meals","18/04/16"
"Wolverhampton City Council","http://opendatacommunities.org/id/metropolitan-district-council/wolverhampton","ARGOS LTD","41.66","Private Sector Housing","5310","Equipment - Purchase","18/04/16"
"Wolverhampton City Council","http://opendatacommunities.org/id/metropolitan-district-council/wolverhampton","Amazon EU","17.88","Pupil Premium","5969","Stationery","18/04/16"
"Wolverhampton City Council","http://opendatacommunities.org/id/metropolitan-district-council/wolverhampton","Amazon UK Marketplace","2.61","Pupil Premium","5942","Stationery","18/04/16"
"Wolverhampton City Council","http://opendatacommunities.org/id/metropolitan-district-council/wolverhampton","Amazon UK Marketplace","18.98","Technical Support","5942","Equipment - Purchase","18/04/16"
"Wolverhampton City Council","http://opendatacommunities.org/id/metropolitan-district-council/wolverhampton","SAINSBURYS LOC4867","7.38","Mayoral Expenses","5411","Hospitality","18/04/16"
"Wolverhampton City Council","http://opendatacommunities.org/id/metropolitan-district-council/wolverhampton","ASDA HOME SHOPPING","95.81","Ernest Bold Court","5411","Provisions (Not for resale)","18/04/16"
"Wolverhampton City Council","http://opendatacommunities.org/id/metropolitan-district-council/wolverhampton","Amazon EU","45.83","Technical Support","5969","Equipment - Purchase","18/04/16"
"Wolverhampton City Council","http://opendatacommunities.org/id/metropolitan-district-council/wolverhampton","BULLFINCH GAS EQUIPMEN","897","One-off Rechargeable Events","5999","Equipment - Purchase","18/04/16"
"Wolverhampton City Council","http://opendatacommunities.org/id/metropolitan-district-council/wolverhampton","Amazon UK Marketplace","3.13","Technical Support","5942","Equipment - Purchase","18/04/16"
"Wolverhampton City Council","http://opendatacommunities.org/id/metropolitan-district-council/wolverhampton","ASDA SUPERSTORE","222.04","LAC Transitions Team","5411","Client Allowances","18/04/16"
"Wolverhampton City Council","http://opendatacommunities.org/id/metropolitan-district-council/wolverhampton","Amazon Svcs Europe,SAR","11.99","Global Budgets","5942","Books","18/04/16"
"Wolverhampton City Council","http://opendatacommunities.org/id/metropolitan-district-council/wolverhampton","CT WOLVERHAMPTON","130","CIN/CP S17 SW Unit - Area 5","8398","Services - Supplies & Services to users","18/04/16"
"Wolverhampton City Council","http://opendatacommunities.org/id/metropolitan-district-council/wolverhampton","SAINSBURYS (2340)","27.35","Youth Offending Team","5411","Provisions (Not for resale)","15/04/16"
"Wolverhampton City Council","http://opendatacommunities.org/id/metropolitan-district-council/wolverhampton","BLACKBERRY PRODUCTIONS","636","School Improvement","7399","Conference Expenses","15/04/16"
"Wolverhampton City Council","http://opendatacommunities.org/id/metropolitan-district-council/wolverhampton","WEST COAST TRAINS","537","Legal Services","4112","Public Transport","15/04/16"
"Wolverhampton City Council","http://opendatacommunities.org/id/metropolitan-district-council/wolverhampton","Amazon EU","18.41","Technical Support","5969","Equipment - Purchase","15/04/16"
"Wolverhampton City Council","http://opendatacommunities.org/id/metropolitan-district-council/wolverhampton","W M MORRISON PLC","20.3","Ernest Bold Court","5411","Provisions (Not for resale)","15/04/16"
"Wolverhampton City Council","http://opendatacommunities.org/id/metropolitan-district-council/wolverhampton","POST OFFICE COUNTER","23.04","Assessment Team (East)","9402","Comms - Postage","15/04/16"
"Wolverhampton City Council","http://opendatacommunities.org/id/metropolitan-district-council/wolverhampton","CONFERENCE CARE","285","Agresso System Support","7011","Conference Expenses","15/04/16"
"Wolverhampton City Council","http://opendatacommunities.org/id/metropolitan-district-council/wolverhampton","TFL VISITOR SHOP","33.95","Environmental Health - Pub Prot - Gen","5965","Services - Fees and Charges","15/04/16"
"Wolverhampton City Council","http://opendatacommunities.org/id/metropolitan-district-council/wolverhampton","NOTEMACHINE","250","CIN/CP S17 SW Unit - Area 6","6011","Financial Assistance In Exceptional Circ","15/04/16"
"Wolverhampton City Council","http://opendatacommunities.org/id/metropolitan-district-council/wolverhampton","FACEBOOK DEW7H82B92","8.77","Communications & Marketing - General","7311","Marketing \ Non-staff advertising","15/04/16"
"Wolverhampton City Council","http://opendatacommunities.org/id/metropolitan-district-council/wolverhampton","TRAMLINK NOTTINGHAM LT","5.5","Headstart","4789","Public Transport","15/04/16"
"Wolverhampton City Council","http://opendatacommunities.org/id/metropolitan-district-council/wolverhampton","POST OFFICE COUNTER","103","Adoption Team","9402","Comms - Postage","15/04/16"
"Wolverhampton City Council","http://opendatacommunities.org/id/metropolitan-district-council/wolverhampton","POST OFFICE COUNTER","-48","Adoption Team","9402","Comms - Postage","15/04/16"
"Wolverhampton City Council","http://opendatacommunities.org/id/metropolitan-district-council/wolverhampton","Virgintrains.co.uk","179","Environmental Health - Pub Prot - Gen","4112","Services - Fees and Charges","15/04/16"
"Wolverhampton City Council","http://opendatacommunities.org/id/metropolitan-district-council/wolverhampton","MACHINE MART LTD","35.97","Bilston Town Hall","5722","Equipment - Purchase","15/04/16"
"Wolverhampton City Council","http://opendatacommunities.org/id/metropolitan-district-council/wolverhampton","ARGOS LTD","8.33","LAC Transitions Team","5310","Client Allowances","15/04/16"
"Wolverhampton City Council","http://opendatacommunities.org/id/metropolitan-district-council/wolverhampton","NAACE (TRADING) LI","62.45","Learning Technologies","8299","Training Expenses","15/04/16"
"Wolverhampton City Council","http://opendatacommunities.org/id/metropolitan-district-council/wolverhampton","ASDA 4387","-15.95","CIN/CP S17 SW Unit - Area 5","5411","Provisions (Not for resale)","15/04/16"
"Wolverhampton City Council","http://opendatacommunities.org/id/metropolitan-district-council/wolverhampton","WOLVERHAMPTON CITY COU","21","Blakenhall Commty & Healthy Living Ctr","9399","Services - Fees and Charges","15/04/16"
"Wolverhampton City Council","http://opendatacommunities.org/id/metropolitan-district-council/wolverhampton","CARVER/WOLVERHAMPTON/L","14.93","Wholesale Market Facilities Management","5211","Cleaning Supplies and Materials","15/04/16"
"Wolverhampton City Council","http://opendatacommunities.org/id/metropolitan-district-council/wolverhampton","ASDA SUPERSTORE","15.33","MAST 3 - Graiseley","5411","Provisions (Not for resale)","15/04/16"
"Wolverhampton City Council","http://opendatacommunities.org/id/metropolitan-district-council/wolverhampton","ASDA SUPERSTORE","32.5","Upper Pendeford Farm Childrens Home","5411","Provisions (Not for resale)","15/04/16"
"Wolverhampton City Council","http://opendatacommunities.org/id/metropolitan-district-council/wolverhampton","SQUARESPACE INC.","139.3","Learning Technologies","7372","Computing - Purchase of Software","15/04/16"
"Wolverhampton City Council","http://opendatacommunities.org/id/metropolitan-district-council/wolverhampton","POST OFFICE COUNTER","460","Adoption Team","9402","Comms - Postage","15/04/16"
"Wolverhampton City Council","http://opendatacommunities.org/id/metropolitan-district-council/wolverhampton","ASDA 4387","-5","CIN/CP S17 SW Unit - Area 5","5411","Provisions (Not for resale)","15/04/16"
"Wolverhampton City Council","http://opendatacommunities.org/id/metropolitan-district-council/wolverhampton","ASDA 4387","-12.95","CIN/CP S17 SW Unit - Area 5","5411","Provisions (Not for resale)","15/04/16"
"Wolverhampton City Council","http://opendatacommunities.org/id/metropolitan-district-council/wolverhampton","FACEBOOK CEW7H82B92","591.28","Communications & Marketing - General","7311","Marketing \ Non-staff advertising","15/04/16"
"Wolverhampton City Council","http://opendatacommunities.org/id/metropolitan-district-council/wolverhampton","VIRGIN MEDIA PYMTS","106.5","Civic Halls Non Direct Management A/C","4814","Comms - Telephone Call charges","14/04/16"
"Wolverhampton City Council","http://opendatacommunities.org/id/metropolitan-district-council/wolverhampton","NOVOTEL HOTELS","65.83","Mayoral Expenses","3642","Accommodation Costs","14/04/16"
"Wolverhampton City Council","http://opendatacommunities.org/id/metropolitan-district-council/wolverhampton","VIRGIN MEDIA PYMTS","703","Civic Halls Non Direct Management A/C","4814","Comms - Telephone Call charges","14/04/16"
"Wolverhampton City Council","http://opendatacommunities.org/id/metropolitan-district-council/wolverhampton","Amazon UK Marketplace","10.51","Global Budgets","5942","Books","14/04/16"
"Wolverhampton City Council","http://opendatacommunities.org/id/metropolitan-district-council/wolverhampton","VIRGIN MEDIA PYMTS","114","Civic Hall Administration Overhead Acct","4814","Comms - Telephone Call charges","14/04/16"
"Wolverhampton City Council","http://opendatacommunities.org/id/metropolitan-district-council/wolverhampton","MEDIA & COMMUNICATIONS","273","Revenues","4812","Comms - Mobile Telephones","14/04/16"
"Wolverhampton City Council","http://opendatacommunities.org/id/metropolitan-district-council/wolverhampton","CENTURY ELECTRICAL WHO","8","Caretakers Community Centre","5065","R&M - Departmental planned (external)","14/04/16"
"Wolverhampton City Council","http://opendatacommunities.org/id/metropolitan-district-council/wolverhampton","CARTRIDGE DISCOUNT","18.32","Towers Outdoor Education Centre","5045","Equipment - Purchase","14/04/16"
"Wolverhampton City Council","http://opendatacommunities.org/id/metropolitan-district-council/wolverhampton","EE LIMITED R501","10","School Crossing Patrol","4812","Comms - Mobile Telephones","14/04/16"
"Wolverhampton City Council","http://opendatacommunities.org/id/metropolitan-district-council/wolverhampton","WAITROSE 696","19.2","MAST 3 - Graiseley","5411","Comms - Postage","14/04/16"
"Wolverhampton City Council","http://opendatacommunities.org/id/metropolitan-district-council/wolverhampton","Cross Country","132.1","School Improvement","4112","Public Transport","14/04/16"
"Wolverhampton City Council","http://opendatacommunities.org/id/metropolitan-district-council/wolverhampton","VIRGIN MEDIA PYMTS","432","Civic Halls Non Direct Management A/C","4814","Comms - Telephone Call charges","14/04/16"
"Wolverhampton City Council","http://opendatacommunities.org/id/metropolitan-district-council/wolverhampton","Amazon Svcs Europe,SAR","127.33","Technical Support","5942","Computing - Purchase of Hardware","14/04/16"
"Wolverhampton City Council","http://opendatacommunities.org/id/metropolitan-district-council/wolverhampton","TRAINLINE","164.42","David Ward Exhibition - NPO ACE WAG","4112","Public Transport","14/04/16"
"Wolverhampton City Council","http://opendatacommunities.org/id/metropolitan-district-council/wolverhampton","THE COAL AUTHORITY","37.7","Legal Services","9399","Services - Fees and Charges","14/04/16"
"Wolverhampton City Council","http://opendatacommunities.org/id/metropolitan-district-council/wolverhampton","WEST COAST TRAINS","57.2","CIN/CP S17 SW Unit - Area 3B","4112","Public Transport","14/04/16"
"Wolverhampton City Council","http://opendatacommunities.org/id/metropolitan-district-council/wolverhampton","VIRGIN MEDIA PYMTS","1.01","Civic Halls Non Direct Management A/C","4814","Comms - Telephone Call charges","14/04/16"
"Wolverhampton City Council","http://opendatacommunities.org/id/metropolitan-district-council/wolverhampton","HUGHES","148.33","LAC Transitions Team","5732","Client Allowances","14/04/16"
"Wolverhampton City Council","http://opendatacommunities.org/id/metropolitan-district-council/wolverhampton","MAJESTIC WINE WARE","208.79","Mayoral Expenses","5921","Hospitality","14/04/16"
"Wolverhampton City Council","http://opendatacommunities.org/id/metropolitan-district-council/wolverhampton","WWW.UCAS.COM","19.17","AES Staff Development","8220","Training Expenses","14/04/16"
"Wolverhampton City Council","http://opendatacommunities.org/id/metropolitan-district-council/wolverhampton","B&M RETAIL","18.33","LAC Transitions Team","5310","Client Allowances","14/04/16"
"Wolverhampton City Council","http://opendatacommunities.org/id/metropolitan-district-council/wolverhampton","LINCAT LTD","39.5","Aldersley Leisure Village Bar","5399","Equipment - R & M","14/04/16"
"Wolverhampton City Council","http://opendatacommunities.org/id/metropolitan-district-council/wolverhampton","Amazon UK Marketplace","37.99","Pupil Premium","5942","Equipment - Purchase","14/04/16"
"Wolverhampton City Council","http://opendatacommunities.org/id/metropolitan-district-council/wolverhampton","TRAINLINE","-169","City Direct","4112","Public Transport","14/04/16"
"Wolverhampton City Council","http://opendatacommunities.org/id/metropolitan-district-council/wolverhampton","Virgintrains.co.uk","43.5","Strategic Asset Management - General","4112","Public Transport","14/04/16"
"Wolverhampton City Council","http://opendatacommunities.org/id/metropolitan-district-council/wolverhampton","PREMIER INN","17.98","Adoption and Residence Team & Allowances","3811","Accommodation Costs","14/04/16"
"Wolverhampton City Council","http://opendatacommunities.org/id/metropolitan-district-council/wolverhampton","CIEH","279","Central Training","8699","Training Expenses","13/04/16"
"Wolverhampton City Council","http://opendatacommunities.org/id/metropolitan-district-council/wolverhampton","CENTURY ELECTRICAL WHO","65.25","Culwell Street Depot","5065","R&M - Departmental planned (external)","13/04/16"
"Wolverhampton City Council","http://opendatacommunities.org/id/metropolitan-district-council/wolverhampton","ASDA HOME SHOPPING","-0.21","Ernest Bold Court","5411","Provisions (Not for resale)","13/04/16"
"Wolverhampton City Council","http://opendatacommunities.org/id/metropolitan-district-council/wolverhampton","G & M HALE (SUNDRIES)","56.43","Discretionary Fund","5992","Materials","13/04/16"
"Wolverhampton City Council","http://opendatacommunities.org/id/metropolitan-district-council/wolverhampton","AA MEMBERSHIP R/T","156.18","Fleet Management","5968","Equipment - Purchase","13/04/16"
"Wolverhampton City Council","http://opendatacommunities.org/id/metropolitan-district-council/wolverhampton","PO LOW HILL 1592","130","46a, Second Avenue, Low Hill","6011","Services - Bank Charges","13/04/16"
"Wolverhampton City Council","http://opendatacommunities.org/id/metropolitan-district-council/wolverhampton","TRAINLINE","15.05","LAC Admin Team","4112","Client Allowances","13/04/16"
"Wolverhampton City Council","http://opendatacommunities.org/id/metropolitan-district-council/wolverhampton","ASDA HOME SHOPPING","47.07","Ernest Bold Court","5411","Provisions (Not for resale)","13/04/16"
"Wolverhampton City Council","http://opendatacommunities.org/id/metropolitan-district-council/wolverhampton","G & M HALE LTD","92.25","Creative Studies Delivery Area","5992","Materials for resale","13/04/16"
"Wolverhampton City Council","http://opendatacommunities.org/id/metropolitan-district-council/wolverhampton","WWW.SEVERNTRENTSEARCHE","585","Legal Services","4900","Electricity","13/04/16"
"Wolverhampton City Council","http://opendatacommunities.org/id/metropolitan-district-council/wolverhampton","G & M HALE LTD","130","Discretionary Fund","5992","Materials","13/04/16"
"Wolverhampton City Council","http://opendatacommunities.org/id/metropolitan-district-council/wolverhampton","ARGOS LTD","109.27","LAC Transitions Team","5310","Client Allowances","13/04/16"
"Wolverhampton City Council","http://opendatacommunities.org/id/metropolitan-district-council/wolverhampton","SAINSBURYS (2340)","16.45","Civic Centre Catering","5411","Provisions (Not for resale)","13/04/16"
"Wolverhampton City Council","http://opendatacommunities.org/id/metropolitan-district-council/wolverhampton","WICKES BUILDING","73.32","David Ward Exhibition - NPO ACE WAG","5211","Materials","13/04/16"
"Wolverhampton City Council","http://opendatacommunities.org/id/metropolitan-district-council/wolverhampton","WWW.SHROPSHIRE-C.GOV.","11","CIN/CP S17 SW Unit - Area 4","8220","Printing","13/04/16"
"Wolverhampton City Council","http://opendatacommunities.org/id/metropolitan-district-council/wolverhampton","PAYPAL  NAS UK","195","Central Training","8398","Training Expenses","13/04/16"
"Wolverhampton City Council","http://opendatacommunities.org/id/metropolitan-district-council/wolverhampton","G & M HALE (SUNDRIES)","37.9","College of Further Education","5992","Equipment - Purchase","13/04/16"
"Wolverhampton City Council","http://opendatacommunities.org/id/metropolitan-district-council/wolverhampton","WEST COAST TRAINS","6.92","Education And Access","4112","Public Transport","13/04/16"
"Wolverhampton City Council","http://opendatacommunities.org/id/metropolitan-district-council/wolverhampton","PREMIER INN","99","Adoption and Residence Team & Allowances","3811","Accommodation Costs","13/04/16"
"Wolverhampton City Council","http://opendatacommunities.org/id/metropolitan-district-council/wolverhampton","B AND Q 1243","26.58","Caretakers Community Centre","5211","R&M - Departmental planned (external)","13/04/16"
"Wolverhampton City Council","http://opendatacommunities.org/id/metropolitan-district-council/wolverhampton","Virgintrains.co.uk","208.6","Mayoral Expenses","4112","Public Transport","12/04/16"
"Wolverhampton City Council","http://opendatacommunities.org/id/metropolitan-district-council/wolverhampton","THE COAL AUTHORITY","203.1","Legal Services","9399","Services - Fees and Charges","12/04/16"
"Wolverhampton City Council","http://opendatacommunities.org/id/metropolitan-district-council/wolverhampton","NATWEST BANK","200","Children's Village Children Centre","6011","Equipment - Purchase","12/04/16"
"Wolverhampton City Council","http://opendatacommunities.org/id/metropolitan-district-council/wolverhampton","Amazon UK Marketplace","8.79","Global Budgets","5942","Books","12/04/16"
"Wolverhampton City Council","http://opendatacommunities.org/id/metropolitan-district-council/wolverhampton","SAINSBURYS 2040","12","Ernest Bold Court","5411","Provisions (Not for resale)","12/04/16"
"Wolverhampton City Council","http://opendatacommunities.org/id/metropolitan-district-council/wolverhampton","TRAINLINE","53.55","Adoption and Residence Team & Allowances","4112","Public Transport","12/04/16"
"Wolverhampton City Council","http://opendatacommunities.org/id/metropolitan-district-council/wolverhampton","TRAINLINE","121.89","Youth Offending Team","4112","Public Transport","12/04/16"
"Wolverhampton City Council","http://opendatacommunities.org/id/metropolitan-district-council/wolverhampton","TRAINLINE","58.1","Adoption and Residence Team & Allowances","4112","Public Transport","12/04/16"
"Wolverhampton City Council","http://opendatacommunities.org/id/metropolitan-district-council/wolverhampton","REDWINGS LODGE","224.8","CIN/CP S17 SW Unit - Area 6","7011","Accommodation Costs","12/04/16"
"Wolverhampton City Council","http://opendatacommunities.org/id/metropolitan-district-council/wolverhampton","CENTURY ELECTRICAL WHO","8.85","Culwell Street Depot","5065","R&M - Departmental planned (external)","12/04/16"
"Wolverhampton City Council","http://opendatacommunities.org/id/metropolitan-district-council/wolverhampton","HERON FOODS LTD","6.32","Children's Village Children Centre","5499","Hospitality","12/04/16"
"Wolverhampton City Council","http://opendatacommunities.org/id/metropolitan-district-council/wolverhampton","POST OFFICE COUNTER","128","Children's Village Children Centre","9402","Comms - Postage","12/04/16"
"Wolverhampton City Council","http://opendatacommunities.org/id/metropolitan-district-council/wolverhampton","REGISTRARS OFFICE","60","Legal Services","8299","Training Expenses","12/04/16"
"Wolverhampton City Council","http://opendatacommunities.org/id/metropolitan-district-council/wolverhampton","ASDA SUPERSTORE","11.5","CIN/CP S17 SW Unit - Area 5","5411","Provisions (Not for resale)","12/04/16"
"Wolverhampton City Council","http://opendatacommunities.org/id/metropolitan-district-council/wolverhampton","Amazon EU","24.16","Aldersley Leisure Village","5969","Equipment - Purchase","12/04/16"
"Wolverhampton City Council","http://opendatacommunities.org/id/metropolitan-district-council/wolverhampton","SAINSBURYS (2340)","80.4","Discretionary Fund","5411","Provisions (Not for resale)","12/04/16"
"Wolverhampton City Council","http://opendatacommunities.org/id/metropolitan-district-council/wolverhampton","TRAVELODGE","179.92","Mental Health Assessment & Care Mgmt","3615","Services - Supplies & Services to users","12/04/16"
"Wolverhampton City Council","http://opendatacommunities.org/id/metropolitan-district-council/wolverhampton","ASDA SUPERSTORE","23","CIN/CP S17 SW Unit - Area 5","5411","Provisions (Not for resale)","12/04/16"
"Wolverhampton City Council","http://opendatacommunities.org/id/metropolitan-district-council/wolverhampton","TFM FARM & COUNTRY SUP","150.61","Northicote Farm","5399","Equipment - Purchase","12/04/16"
"Wolverhampton City Council","http://opendatacommunities.org/id/metropolitan-district-council/wolverhampton","Virgintrains.co.uk","182.4","Welfare Rights","4112","Public Transport","12/04/16"
"Wolverhampton City Council","http://opendatacommunities.org/id/metropolitan-district-council/wolverhampton","ASDA SUPERSTORE","2.19","Mayoral Expenses","5411","Hospitality","12/04/16"
"Wolverhampton City Council","http://opendatacommunities.org/id/metropolitan-district-council/wolverhampton","ASDA SUPERSTORE","29.6","Civic Centre Catering","5411","Provisions (Not for resale)","12/04/16"
"Wolverhampton City Council","http://opendatacommunities.org/id/metropolitan-district-council/wolverhampton","TFM FARM & COUNTRY SUP","71.01","Northicote Farm","5399","Equipment - Purchase","12/04/16"
"Wolverhampton City Council","http://opendatacommunities.org/id/metropolitan-district-council/wolverhampton","FSPRG.COM INFFUSE.COM","5.05","Technical Support","5734","Subscriptions","12/04/16"
"Wolverhampton City Council","http://opendatacommunities.org/id/metropolitan-district-council/wolverhampton","Virgintrains.co.uk","24.4","LAC Team","4112","Public Transport","12/04/16"
"Wolverhampton City Council","http://opendatacommunities.org/id/metropolitan-district-council/wolverhampton","Virgintrains.co.uk","103.1","Graduate Trainees","4112","Public Transport","12/04/16"
"Wolverhampton City Council","http://opendatacommunities.org/id/metropolitan-district-council/wolverhampton","Virgintrains.co.uk","114.5","Public Health - Healthier Places Team","4112","Public Transport","12/04/16"
"Wolverhampton City Council","http://opendatacommunities.org/id/metropolitan-district-council/wolverhampton","UNTOUCHABLES","15","Cemeteries","5231","Materials","12/04/16"
"Wolverhampton City Council","http://opendatacommunities.org/id/metropolitan-district-council/wolverhampton","PREMIER INN","292","Members Expenses","3811","Services - Supplies & Services to users","11/04/16"
"Wolverhampton City Council","http://opendatacommunities.org/id/metropolitan-district-council/wolverhampton","ASDA 4387","-25","CIN/CP S17 SW Unit - Area 5","5411","Provisions (Not for resale)","11/04/16"
"Wolverhampton City Council","http://opendatacommunities.org/id/metropolitan-district-council/wolverhampton","TVLICENSING.CO.UK","145.5","LAC Admin Team","7392","Client Allowances","11/04/16"
"Wolverhampton City Council","http://opendatacommunities.org/id/metropolitan-district-council/wolverhampton","Virgintrains.co.uk","69","Members Expenses","4112","Public Transport","11/04/16"
"Wolverhampton City Council","http://opendatacommunities.org/id/metropolitan-district-council/wolverhampton","ASDA HOME SHOPPING","1.14","Ernest Bold Court","5411","Provisions (Not for resale)","11/04/16"
"Wolverhampton City Council","http://opendatacommunities.org/id/metropolitan-district-council/wolverhampton","WWW.THESTICKERFACTORY.","20.75","Pupil Premium","7399","Equipment - Purchase","11/04/16"
"Wolverhampton City Council","http://opendatacommunities.org/id/metropolitan-district-council/wolverhampton","BARCLAYS BANK PLC","240","CIN/CP S17 SW Unit - Area 5","6011","Financial Assistance In Exceptional Circ","11/04/16"
"Wolverhampton City Council","http://opendatacommunities.org/id/metropolitan-district-council/wolverhampton","SQUARESPACE INC.","140.79","Learning Technologies","7372","Computing - Purchase of Software","11/04/16"
"Wolverhampton City Council","http://opendatacommunities.org/id/metropolitan-district-council/wolverhampton","WIX.COM","1.9","Technical Support","5968","Subscriptions","11/04/16"
"Wolverhampton City Council","http://opendatacommunities.org/id/metropolitan-district-council/wolverhampton","TVLICENSING.CO.UK","121.25","Children & Family Contact Services","7392","Services - General Licences","11/04/16"
"Wolverhampton City Council","http://opendatacommunities.org/id/metropolitan-district-council/wolverhampton","PREMIER INN","52.92","Safeguarding Admin Resource","3811","Services - Supplies & Services to users","11/04/16"
"Wolverhampton City Council","http://opendatacommunities.org/id/metropolitan-district-council/wolverhampton","BT PAY BY PHONE","62.98","Makers Dozen","4814","Comms - Telephone Call charges","11/04/16"
"Wolverhampton City Council","http://opendatacommunities.org/id/metropolitan-district-council/wolverhampton","YOUNGS SHOE REPAIRS LI","27.65","Fostering Team & Allowances","7251","Fixtures and Fittings - R&M","11/04/16"
"Wolverhampton City Council","http://opendatacommunities.org/id/metropolitan-district-council/wolverhampton","Amazon UK Marketplace","7.78","Global Budgets","5942","Books","11/04/16"
"Wolverhampton City Council","http://opendatacommunities.org/id/metropolitan-district-council/wolverhampton","YOUNGS SHOE REPAIRS LI","27.65","Fostering Team & Allowances","7251","Fixtures and Fittings - R&M","11/04/16"
"Wolverhampton City Council","http://opendatacommunities.org/id/metropolitan-district-council/wolverhampton","WWW.THEPLASTICSHOP.CO.","348.05","David Ward Exhibition - NPO ACE WAG","5072","Equipment - Purchase","11/04/16"
"Wolverhampton City Council","http://opendatacommunities.org/id/metropolitan-district-council/wolverhampton","VWO.com","43.27","City Direct","7399","Equipment - Purchase","11/04/16"
"Wolverhampton City Council","http://opendatacommunities.org/id/metropolitan-district-council/wolverhampton","ASDA SUPERSTORE","200","CIN/CP S17 SW Unit - Area 5","5411","Provisions (Not for resale)","11/04/16"
"Wolverhampton City Council","http://opendatacommunities.org/id/metropolitan-district-council/wolverhampton","ASDA HOME SHOPPING","87.66","Ernest Bold Court","5411","Provisions (Not for resale)","11/04/16"
"Wolverhampton City Council","http://opendatacommunities.org/id/metropolitan-district-council/wolverhampton","Virgintrains.co.uk","73.8","Members Expenses","4112","Public Transport","11/04/16"
"Wolverhampton City Council","http://opendatacommunities.org/id/metropolitan-district-council/wolverhampton","BARCLAYS BANK PLC","240","CIN/CP S17 SW Unit - Area 5","6011","Financial Assistance In Exceptional Circ","11/04/16"
"Wolverhampton City Council","http://opendatacommunities.org/id/metropolitan-district-council/wolverhampton","BT BILL PAYMENT 1","161.93","Art Gallery","4812","Comms - Mobile Telephones","11/04/16"
"Wolverhampton City Council","http://opendatacommunities.org/id/metropolitan-district-council/wolverhampton","AMFBOWLING.CO.UK","65.88","LAC Education Team (LACE)","7997","Educ Trips, Holidays, Outings, Activity","08/04/16"
"Wolverhampton City Council","http://opendatacommunities.org/id/metropolitan-district-council/wolverhampton","HERON FOODS LTD","15.05","Children's Village Nursery","5499","School Meals","08/04/16"
"Wolverhampton City Council","http://opendatacommunities.org/id/metropolitan-district-council/wolverhampton","Cross Country","130.8","Headstart","4112","Public Transport","08/04/16"
"Wolverhampton City Council","http://opendatacommunities.org/id/metropolitan-district-council/wolverhampton","CARDINAL EDUCATION","9.78","Pupil Premium","5945","Equipment - Purchase","08/04/16"
"Wolverhampton City Council","http://opendatacommunities.org/id/metropolitan-district-council/wolverhampton","POST OFFICE COUNTER","99.41","Legal Services","9402","Comms - Postage","08/04/16"
"Wolverhampton City Council","http://opendatacommunities.org/id/metropolitan-district-council/wolverhampton","Cross Country","118.8","Macmillan Welfare Rights","4112","Public Transport","08/04/16"
"Wolverhampton City Council","http://opendatacommunities.org/id/metropolitan-district-council/wolverhampton","GIOMANI","145","LAC Admin Team","5712","Client Allowances","08/04/16"
"Wolverhampton City Council","http://opendatacommunities.org/id/metropolitan-district-council/wolverhampton","WWW.MISCO.CO.UK","-31.14","College of Further Education","5045","Computing - Purchase of Hardware","08/04/16"
"Wolverhampton City Council","http://opendatacommunities.org/id/metropolitan-district-council/wolverhampton","FACEBOOK MTV6F8NB92","593.8","Communications & Marketing - General","7311","Marketing \ Non-staff advertising","08/04/16"
"Wolverhampton City Council","http://opendatacommunities.org/id/metropolitan-district-council/wolverhampton","CUMMINGS BROTHERS LOCK","4.17","Hickman Avenue Depot","7399","R&M - Departmental planned (external)","08/04/16"
"Wolverhampton City Council","http://opendatacommunities.org/id/metropolitan-district-council/wolverhampton","A F BLAKEMORE & SON LT","87.97","Mayoral Expenses","5411","Hospitality","08/04/16"
"Wolverhampton City Council","http://opendatacommunities.org/id/metropolitan-district-council/wolverhampton","ROYAL MAIL GROUP","130.92","Chief Officer - Business Support","9402","Comms - Postage","08/04/16"
"Wolverhampton City Council","http://opendatacommunities.org/id/metropolitan-district-council/wolverhampton","FACEBOOK NTV6F8NB92","6.54","Communications & Marketing - General","7311","Marketing \ Non-staff advertising","08/04/16"
"Wolverhampton City Council","http://opendatacommunities.org/id/metropolitan-district-council/wolverhampton","B&M RETAIL","21.63","LAC Transitions Team","5310","Client Allowances","08/04/16"
"Wolverhampton City Council","http://opendatacommunities.org/id/metropolitan-district-council/wolverhampton","MEDIPOST (UK) LTD","49","MAST - Central Team","5047","Books","08/04/16"
"Wolverhampton City Council","http://opendatacommunities.org/id/metropolitan-district-council/wolverhampton","ARGOS LTD","66.66","LAC Transitions Team","5310","Client Allowances","08/04/16"
"Wolverhampton City Council","http://opendatacommunities.org/id/metropolitan-district-council/wolverhampton","WEST COAST TRAINS","33.2","Legal Services","4112","Public Transport","08/04/16"
"Wolverhampton City Council","http://opendatacommunities.org/id/metropolitan-district-council/wolverhampton","A F BLAKEMORE & SON LT","179.94","Mayoral Expenses","5411","Hospitality","08/04/16"
"Wolverhampton City Council","http://opendatacommunities.org/id/metropolitan-district-council/wolverhampton","SAIN ST MARKS","250","Childrens with Disabilities Team","6011","Financial Assistance In Exceptional Circ","08/04/16"
"Wolverhampton City Council","http://opendatacommunities.org/id/metropolitan-district-council/wolverhampton","TVLICENSING.CO.UK","145.5","Blakenhall Resource Centre","7392","Services - Consultants","08/04/16"
"Wolverhampton City Council","http://opendatacommunities.org/id/metropolitan-district-council/wolverhampton","ASDA HOME SHOPPING","-0.2","Museum Resilience Project - ACE","5411","Provisions (Not for resale)","07/04/16"
"Wolverhampton City Council","http://opendatacommunities.org/id/metropolitan-district-council/wolverhampton","M6 TOLL","3.17","Mayoral Expenses","4784","Parking Fees","07/04/16"
"Wolverhampton City Council","http://opendatacommunities.org/id/metropolitan-district-council/wolverhampton","BT BILL PAYMENT 1","76.98","Art Gallery","4812","Comms - Mobile Telephones","07/04/16"
"Wolverhampton City Council","http://opendatacommunities.org/id/metropolitan-district-council/wolverhampton","RAPID ELECTRONICS","26.38","Pupil Premium","5732","Equipment - Purchase","07/04/16"
"Wolverhampton City Council","http://opendatacommunities.org/id/metropolitan-district-council/wolverhampton","THE POST OFFICE","4.96","Black Art Movement","9402","Comms - Postage","07/04/16"
"Wolverhampton City Council","http://opendatacommunities.org/id/metropolitan-district-council/wolverhampton","DUNELM (SOFT FURNISHIN","331.69","Commissioning Disabilities","5714","Equipment - Purchase","07/04/16"
"Wolverhampton City Council","http://opendatacommunities.org/id/metropolitan-district-council/wolverhampton","TRAINLINE","196.45","City Direct","4112","Public Transport","07/04/16"
"Wolverhampton City Council","http://opendatacommunities.org/id/metropolitan-district-council/wolverhampton","WWW.MISCO.CO.UK","260.08","College of Further Education","5045","Computing - Purchase of Hardware","07/04/16"
"Wolverhampton City Council","http://opendatacommunities.org/id/metropolitan-district-council/wolverhampton","Virgintrains.co.uk","83.4","Looked After Team 1","4112","Public Transport","07/04/16"
"Wolverhampton City Council","http://opendatacommunities.org/id/metropolitan-district-council/wolverhampton","RED BOX SAFETY SOLUTIO","18.79","Central Baths","5999","Equipment - Purchase","07/04/16"
"Wolverhampton City Council","http://opendatacommunities.org/id/metropolitan-district-council/wolverhampton","ONE STOP 1009","6.4","MAST 1 - Deansfield","5411","Comms - Postage","07/04/16"
"Wolverhampton City Council","http://opendatacommunities.org/id/metropolitan-district-council/wolverhampton","WWW.CARESHOP.CO.UK","40.3","Swan Bank","5999","Cleaning Supplies and Materials","07/04/16"
"Wolverhampton City Council","http://opendatacommunities.org/id/metropolitan-district-council/wolverhampton","Virgintrains.co.uk","255","Looked After Team 1","4112","Public Transport","07/04/16"
"Wolverhampton City Council","http://opendatacommunities.org/id/metropolitan-district-council/wolverhampton","URBAN CASUALS","12.5","LAC Transitions Team","5691","Client Allowances","07/04/16"
"Wolverhampton City Council","http://opendatacommunities.org/id/metropolitan-district-council/wolverhampton","E.ON ENERGY SOLUTIONS","200","CIN/CP S17 SW Unit - Area 5","4900","Electricity","07/04/16"
"Wolverhampton City Council","http://opendatacommunities.org/id/metropolitan-district-council/wolverhampton","TRAINLINE","223.07","LAC Admin Team","4112","Client Allowances","07/04/16"
"Wolverhampton City Council","http://opendatacommunities.org/id/metropolitan-district-council/wolverhampton","ASDA HOME SHOPPING","74.5","Museum Resilience Project - ACE","5411","Provisions (Not for resale)","07/04/16"
"Wolverhampton City Council","http://opendatacommunities.org/id/metropolitan-district-council/wolverhampton","SAINSBURYS 2040","6.92","Ernest Bold Court","5411","Provisions (Not for resale)","07/04/16"
"Wolverhampton City Council","http://opendatacommunities.org/id/metropolitan-district-council/wolverhampton","Amazon EU","21.29","Global Budgets","5969","Books","07/04/16"
"Wolverhampton City Council","http://opendatacommunities.org/id/metropolitan-district-council/wolverhampton","UNTOUCHABLES","34.17","Cemeteries","5231","Materials","07/04/16"
"Wolverhampton City Council","http://opendatacommunities.org/id/metropolitan-district-council/wolverhampton","Amazon UK Marketplace","8.96","Aldersley Leisure Village","5942","Equipment - Purchase","07/04/16"
"Wolverhampton City Council","http://opendatacommunities.org/id/metropolitan-district-council/wolverhampton","Amazon UK Marketplace","6.21","Global Budgets","5942","Books","07/04/16"
"Wolverhampton City Council","http://opendatacommunities.org/id/metropolitan-district-council/wolverhampton","THE TRAVELGATEWAY LTD","60.47","Members Expenses","4722","Public Transport","07/04/16"
"Wolverhampton City Council","http://opendatacommunities.org/id/metropolitan-district-council/wolverhampton","B&M RETAIL LTD","11.63","Cemeteries","5310","Equipment - Purchase","07/04/16"
"Wolverhampton City Council","http://opendatacommunities.org/id/metropolitan-district-council/wolverhampton","SHROPSHIRESTAR.COM","66","Communications & Marketing - General","5994","Books","07/04/16"
"Wolverhampton City Council","http://opendatacommunities.org/id/metropolitan-district-council/wolverhampton","NAMESCO","398.89","City Direct","4816","Computing - Purchase of Software","07/04/16"
"Wolverhampton City Council","http://opendatacommunities.org/id/metropolitan-district-council/wolverhampton","TRAINLINE","17.9","CIN/CP S17 SW Unit - Area 8","4112","Public Transport","07/04/16"
"Wolverhampton City Council","http://opendatacommunities.org/id/metropolitan-district-council/wolverhampton","M6 TOLL","4.58","Mayoral Expenses","4784","Parking Fees","06/04/16"
"Wolverhampton City Council","http://opendatacommunities.org/id/metropolitan-district-council/wolverhampton","Cross Country","29.9","Macmillan Welfare Rights","4112","Public Transport","06/04/16"
"Wolverhampton City Council","http://opendatacommunities.org/id/metropolitan-district-council/wolverhampton","ARGOS LTD","41.66","Private Sector Housing","5310","Equipment - Purchase","06/04/16"
"Wolverhampton City Council","http://opendatacommunities.org/id/metropolitan-district-council/wolverhampton","Amazon UK Marketplace","19.16","Aldersley Leisure Village","5942","Equipment - Purchase","06/04/16"
"Wolverhampton City Council","http://opendatacommunities.org/id/metropolitan-district-council/wolverhampton","POST OFFICE COUNTER","20.76","Legal Services","9402","Comms - Postage","06/04/16"
"Wolverhampton City Council","http://opendatacommunities.org/id/metropolitan-district-council/wolverhampton","WWW.MISCO.CO.UK","220.06","College of Further Education","5045","Computing - Purchase of Hardware","06/04/16"
"Wolverhampton City Council","http://opendatacommunities.org/id/metropolitan-district-council/wolverhampton","DIRECT BOOT","0.01","Aldersley Leisure Village","5691","Services - Bank Charges","06/04/16"
"Wolverhampton City Council","http://opendatacommunities.org/id/metropolitan-district-council/wolverhampton","Amazon UK Marketplace","11.41","Global Budgets","5942","Books","06/04/16"
"Wolverhampton City Council","http://opendatacommunities.org/id/metropolitan-district-council/wolverhampton","VALUE PRODUCTS LTD","52.25","MAST - Central Team","5999","Books","06/04/16"
"Wolverhampton City Council","http://opendatacommunities.org/id/metropolitan-district-council/wolverhampton","THE MOUNT HOTEL","340","Electoral Registration","7011","Accommodation Costs","06/04/16"
"Wolverhampton City Council","http://opendatacommunities.org/id/metropolitan-district-council/wolverhampton","ASDA HOME SHOPPING","-0.23","Ernest Bold Court","5411","Provisions (Not for resale)","06/04/16"
"Wolverhampton City Council","http://opendatacommunities.org/id/metropolitan-district-council/wolverhampton","WWW.MAILCOMS.CO.UK","149.95","Document Centre - General","5085","Materials","06/04/16"
"Wolverhampton City Council","http://opendatacommunities.org/id/metropolitan-district-council/wolverhampton","TRAINLINE","103.12","CIN/CP S17 SW Unit - Area 5","4112","Public Transport","06/04/16"
"Wolverhampton City Council","http://opendatacommunities.org/id/metropolitan-district-council/wolverhampton","REDWINGS LODGE","269.7","CIN/CP S17 SW Unit - Area 6","7011","Accommodation Costs","06/04/16"
"Wolverhampton City Council","http://opendatacommunities.org/id/metropolitan-district-council/wolverhampton","Amazon EU","58.27","Environmental Health - Pub Prot - Gen","5969","Equipment - Purchase","06/04/16"
"Wolverhampton City Council","http://opendatacommunities.org/id/metropolitan-district-council/wolverhampton","WEBSTAFF/ATP PAYMENTS","11","Looked After Team 1","9399","Services - Fees and Charges","06/04/16"
"Wolverhampton City Council","http://opendatacommunities.org/id/metropolitan-district-council/wolverhampton","ASDA HOME SHOPPING","65.77","Ernest Bold Court","5411","Provisions (Not for resale)","06/04/16"
"Wolverhampton City Council","http://opendatacommunities.org/id/metropolitan-district-council/wolverhampton","POST OFFICE COUNTER","10.04","CIN/CP Social Work Unit - Area 4","9402","Comms - Postage","06/04/16"
"Wolverhampton City Council","http://opendatacommunities.org/id/metropolitan-district-council/wolverhampton","IKEA SACAT","20.83","LAC Transitions Team","5719","Client Allowances","05/04/16"
"Wolverhampton City Council","http://opendatacommunities.org/id/metropolitan-district-council/wolverhampton","WWW.LIVINGSTREETS.ORG.","146","Road Safety","8398","Equipment - Purchase","05/04/16"
"Wolverhampton City Council","http://opendatacommunities.org/id/metropolitan-district-council/wolverhampton","BOOKWHEN","9","Craftplay","7372","Computing - Purchase of Software","05/04/16"
"Wolverhampton City Council","http://opendatacommunities.org/id/metropolitan-district-council/wolverhampton","ARGOS RETAIL GROUP","43.44","CIN/CP S17 SW Unit - Area 4","5310","Equipment - Purchase","05/04/16"
"Wolverhampton City Council","http://opendatacommunities.org/id/metropolitan-district-council/wolverhampton","REDWINGS LODGE","44.95","Priory Green - CIN SWU S17","7011","Accommodation Costs","05/04/16"
"Wolverhampton City Council","http://opendatacommunities.org/id/metropolitan-district-council/wolverhampton","TESCO STORES 5194","148.05","Towers Outdoor Education Centre","5411","Provisions (Not for resale)","05/04/16"
"Wolverhampton City Council","http://opendatacommunities.org/id/metropolitan-district-council/wolverhampton","POST OFFICE COUNTER","176","Fostering Team & Allowances","9402","Comms - Postage","05/04/16"
"Wolverhampton City Council","http://opendatacommunities.org/id/metropolitan-district-council/wolverhampton","TOOLSTATION LTD","23.9","Meals on Wheels","5251","Equipment - R & M","05/04/16"
"Wolverhampton City Council","http://opendatacommunities.org/id/metropolitan-district-council/wolverhampton","WOLVES FC","12.5","Learning Technologies","7997","Events","05/04/16"
"Wolverhampton City Council","http://opendatacommunities.org/id/metropolitan-district-council/wolverhampton","C G MURRAY & SON L","25.92","Pest Control","5912","Materials","05/04/16"
"Wolverhampton City Council","http://opendatacommunities.org/id/metropolitan-district-council/wolverhampton","Amazon EU","30.88","Fostering Team & Allowances","5969","Equipment - Purchase","05/04/16"
"Wolverhampton City Council","http://opendatacommunities.org/id/metropolitan-district-council/wolverhampton","ASDA HOME SHOPPING","105.13","Upper Pendeford Farm Childrens Home","5411","Provisions (Not for resale)","05/04/16"
"Wolverhampton City Council","http://opendatacommunities.org/id/metropolitan-district-council/wolverhampton","ASDA HOME SHOPPING","-0.21","Upper Pendeford Farm Childrens Home","5411","Provisions (Not for resale)","05/04/16"
"Wolverhampton City Council","http://opendatacommunities.org/id/metropolitan-district-council/wolverhampton","WWW.PROTURF.CO.UK","77.5","Aldersley Leisure Village","5261","Equipment - Purchase","05/04/16"
"Wolverhampton City Council","http://opendatacommunities.org/id/metropolitan-district-council/wolverhampton","Amazon EU","39.29","Fostering Team & Allowances","5969","Equipment - Purchase","05/04/16"
"Wolverhampton City Council","http://opendatacommunities.org/id/metropolitan-district-council/wolverhampton","REDWINGS LODGE","13.55","Priory Green - CIN SWU S17","7011","Provisions (Not for resale)","04/04/16"
"Wolverhampton City Council","http://opendatacommunities.org/id/metropolitan-district-council/wolverhampton","Amazon EU","58.27","Environmental Health - Pub Prot - Gen","5969","Equipment - Purchase","04/04/16"
"Wolverhampton City Council","http://opendatacommunities.org/id/metropolitan-district-council/wolverhampton","MARBLE ARCH HOTEL","179.33","Delivery & OCE Development","7011","Accommodation Costs","04/04/16"
"Wolverhampton City Council","http://opendatacommunities.org/id/metropolitan-district-council/wolverhampton","Amazon UK Marketplace","6.57","Global Budgets","5942","Books","04/04/16"
"Wolverhampton City Council","http://opendatacommunities.org/id/metropolitan-district-council/wolverhampton","REDWINGS LODGE","13.55","Priory Green - CIN SWU S17","7011","Provisions (Not for resale)","04/04/16"
"Wolverhampton City Council","http://opendatacommunities.org/id/metropolitan-district-council/wolverhampton","TRAINLINE","92.41","Black Art Movement","4112","Public Transport","04/04/16"
"Wolverhampton City Council","http://opendatacommunities.org/id/metropolitan-district-council/wolverhampton","REDWINGS LODGE","8.8","Priory Green - CIN SWU S17","7011","Provisions (Not for resale)","04/04/16"
"Wolverhampton City Council","http://opendatacommunities.org/id/metropolitan-district-council/wolverhampton","Amazon EU","58.27","Environmental Health - Pub Prot - Gen","5969","Equipment - Purchase","04/04/16"
"Wolverhampton City Council","http://opendatacommunities.org/id/metropolitan-district-council/wolverhampton","MARBLE ARCH HOTEL","179.33","Delivery & OCE Development","7011","Accommodation Costs","04/04/16"
"Wolverhampton City Council","http://opendatacommunities.org/id/metropolitan-district-council/wolverhampton","MARBLE ARCH HOTEL","179.33","Delivery & OCE Development","7011","Accommodation Costs","04/04/16"
"Wolverhampton City Council","http://opendatacommunities.org/id/metropolitan-district-council/wolverhampton","Amazon EU","58.27","Environmental Health - Pub Prot - Gen","5969","Equipment - Purchase","04/04/16"
"Wolverhampton City Council","http://opendatacommunities.org/id/metropolitan-district-council/wolverhampton","Amazon EU","58.27","Environmental Health - Pub Prot - Gen","5969","Equipment - Purchase","04/04/16"
"Wolverhampton City Council","http://opendatacommunities.org/id/metropolitan-district-council/wolverhampton","ASDA SUPERSTORE","37.76","Whitmore Reans CC - Area 5","5411","Provisions (Not for resale)","04/04/16"
"Wolverhampton City Council","http://opendatacommunities.org/id/metropolitan-district-council/wolverhampton","Amazon UK Marketplace","20.67","Art Gallery","5942","Books","04/04/16"
"Wolverhampton City Council","http://opendatacommunities.org/id/metropolitan-district-council/wolverhampton","ASDA HOME SHOPPING","-0.08","Ernest Bold Court","5411","Provisions (Not for resale)","04/04/16"
"Wolverhampton City Council","http://opendatacommunities.org/id/metropolitan-district-council/wolverhampton","Amazon EU","58.27","Environmental Health - Pub Prot - Gen","5969","Equipment - Purchase","04/04/16"
"Wolverhampton City Council","http://opendatacommunities.org/id/metropolitan-district-council/wolverhampton","WILKO.COM","20","Legal Services","5722","Equipment - Purchase","04/04/16"
"Wolverhampton City Council","http://opendatacommunities.org/id/metropolitan-district-council/wolverhampton","WILKO RETAIL LIMIT","41.67","LAC Transitions Team","5722","Client Allowances","04/04/16"
"Wolverhampton City Council","http://opendatacommunities.org/id/metropolitan-district-council/wolverhampton","ASDA HOME SHOPPING","85.94","Ernest Bold Court","5411","Provisions (Not for resale)","04/04/16"
"Wolverhampton City Council","http://opendatacommunities.org/id/metropolitan-district-council/wolverhampton","B AND Q 1243","7.92","Bert Williams Leisure Centre","5211","Stationery","04/04/16"
"Wolverhampton City Council","http://opendatacommunities.org/id/metropolitan-district-council/wolverhampton","TRAINLINE","33.41","LAC Admin Team","4112","Client Allowances","04/04/16"
"Wolverhampton City Council","http://opendatacommunities.org/id/metropolitan-district-council/wolverhampton","MARBLE ARCH HOTEL","179.33","Delivery & OCE Development","7011","Accommodation Costs","04/04/16"
"Wolverhampton City Council","http://opendatacommunities.org/id/metropolitan-district-council/wolverhampton","ROYAL MAIL  0845606040","1.5","Fleet Management","9402","Comms - Postage","04/04/16"
"Wolverhampton City Council","http://opendatacommunities.org/id/metropolitan-district-council/wolverhampton","ASDA HOME SHOPPING","38.91","46a, Second Avenue, Low Hill","5411","Provisions (Not for resale)","04/04/16"
"Wolverhampton City Council","http://opendatacommunities.org/id/metropolitan-district-council/wolverhampton","Amazon UK Marketplace","16.92","Bert Williams Leisure Centre","5942","Equipment - Purchase","04/04/16"
"Wolverhampton City Council","http://opendatacommunities.org/id/metropolitan-district-council/wolverhampton","Amazon EU","58.27","Environmental Health - Pub Prot - Gen","5969","Equipment - Purchase","04/04/16"
"Wolverhampton City Council","http://opendatacommunities.org/id/metropolitan-district-council/wolverhampton","WWW.SEVERNTRENTSEARCHE","585","Legal Services","4900","Electricity","04/04/16"
"Wolverhampton City Council","http://opendatacommunities.org/id/metropolitan-district-council/wolverhampton","REGISTRARS OFFICE","30","Legal Services","8299","Training Expenses","04/04/16"
"Wolverhampton City Council","http://opendatacommunities.org/id/metropolitan-district-council/wolverhampton","CURRYS ONLINE","15","LAC Transitions Team","5732","Equipment - Purchase","04/04/16"
"Wolverhampton City Council","http://opendatacommunities.org/id/metropolitan-district-council/wolverhampton","ARGOS RETAIL GROUP","108.99","Ernest Bold Court","5310","Equipment - Purchase","04/04/16"
"Wolverhampton City Council","http://opendatacommunities.org/id/metropolitan-district-council/wolverhampton","ARGOS LTD","66.66","LAC Transitions Team","5310","Client Allowances","04/04/16"
"Wolverhampton City Council","http://opendatacommunities.org/id/metropolitan-district-council/wolverhampton","ARGOS LTD","139.13","LAC Transitions Team","5310","Client Allowances","04/04/16"
"Wolverhampton City Council","http://opendatacommunities.org/id/metropolitan-district-council/wolverhampton","Amazon UK Marketplace","67.9","Legal Services","5942","Books","04/04/16"
"Wolverhampton City Council","http://opendatacommunities.org/id/metropolitan-district-council/wolverhampton","Amazon EU","58.27","Environmental Health - Pub Prot - Gen","5969","Equipment - Purchase","04/04/16"
"Wolverhampton City Council","http://opendatacommunities.org/id/metropolitan-district-council/wolverhampton","Amazon EU","58.27","Environmental Health - Pub Prot - Gen","5969","Equipment - Purchase","04/04/16"
"Wolverhampton City Council","http://opendatacommunities.org/id/metropolitan-district-council/wolverhampton","MARBLE ARCH HOTEL","179.33","Delivery & OCE Development","7011","Accommodation Costs","04/04/16"
"Wolverhampton City Council","http://opendatacommunities.org/id/metropolitan-district-council/wolverhampton","Amazon EU","58.27","Environmental Health - Pub Prot - Gen","5969","Equipment - Purchase","04/04/16"
"Wolverhampton City Council","http://opendatacommunities.org/id/metropolitan-district-council/wolverhampton","Amazon EU","24.14","Global Budgets","5969","Books","04/04/16"
"Wolverhampton City Council","http://opendatacommunities.org/id/metropolitan-district-council/wolverhampton","TVLICENSING.CO.UK","145.5","LAC Transitions Team","7392","Client Allowances","01/04/16"
"Wolverhampton City Council","http://opendatacommunities.org/id/metropolitan-district-council/wolverhampton","ROYAL CARPETS","291.67","LAC Transitions Team","5713","Client Allowances","01/04/16"
"Wolverhampton City Council","http://opendatacommunities.org/id/metropolitan-district-council/wolverhampton","Amazon EU","9.99","Legal Services","5969","Equipment - Purchase","01/04/16"
"Wolverhampton City Council","http://opendatacommunities.org/id/metropolitan-district-council/wolverhampton","HOME BARGAINS","66.57","Cemeteries","5251","Equipment - Purchase","01/04/16"
"Wolverhampton City Council","http://opendatacommunities.org/id/metropolitan-district-council/wolverhampton","FACEBOOK DVFSM9S4U2","75.76","Civic Hall Administration Overhead Acct","7311","Marketing \ Non-staff advertising","01/04/16"
"Wolverhampton City Council","http://opendatacommunities.org/id/metropolitan-district-council/wolverhampton","POST OFFICE COUNTER","473","Looked After Team 1","9402","Comms - Postage","01/04/16"
"Wolverhampton City Council","http://opendatacommunities.org/id/metropolitan-district-council/wolverhampton","FACEBOOK 9Z22R8SA92","198.51","Communications & Marketing - General","7311","Marketing \ Non-staff advertising","01/04/16"
"Wolverhampton City Council","http://opendatacommunities.org/id/metropolitan-district-council/wolverhampton","TRAINLINE","232.56","Delivery & OCE Development","4112","Public Transport","01/04/16"
"Wolverhampton City Council","http://opendatacommunities.org/id/metropolitan-district-council/wolverhampton","B&M RETAIL LTD","6.65","Cemeteries","5310","Equipment - Purchase","01/04/16"
"Wolverhampton City Council","http://opendatacommunities.org/id/metropolitan-district-council/wolverhampton","REDWINGS LODGE","169.8","Priory Green - CIN SWU S17","7011","Services - Supplies & Services to users","01/04/16"
"Wolverhampton City Council","http://opendatacommunities.org/id/metropolitan-district-council/wolverhampton","REDWINGS LODGE","9.05","Priory Green - CIN SWU S17","7011","Provisions (Not for resale)","01/04/16"
"Wolverhampton City Council","http://opendatacommunities.org/id/metropolitan-district-council/wolverhampton","ROYAL CARPETS","140","LAC Admin Team","5713","Client Allowances","01/04/16"
"Wolverhampton City Council","http://opendatacommunities.org/id/metropolitan-district-council/wolverhampton","CUMMINGS BROTHERS LOCK","11.25","Caretakers Community Centre","7399","R&M - Departmental planned (external)","01/04/16"
"Wolverhampton City Council","http://opendatacommunities.org/id/metropolitan-district-council/wolverhampton","WEST COAST TRAINS","32.6","Whitmore Reans CC - Area 5","4112","Public Transport","01/04/16"
"Wolverhampton City Council","http://opendatacommunities.org/id/metropolitan-district-council/wolverhampton","POST OFFICE COUNTER","12.98","Nelson Mandela House","9402","Comms - Postage","01/04/16"
"Wolverhampton City Council","http://opendatacommunities.org/id/metropolitan-district-council/wolverhampton","ROYAL CARPETS","316.67","LAC Transitions Team","5713","Client Allowances","01/04/16"
"Wolverhampton City Council","http://opendatacommunities.org/id/metropolitan-district-council/wolverhampton","ARGOS LTD","100","Assistant Director - Public Health","5310","Equipment - Purchase","01/04/16"
"Wolverhampton City Council","http://opendatacommunities.org/id/metropolitan-district-council/wolverhampton","FACEBOOK AZ22R8SA92","0.71","Communications & Marketing - General","7311","Marketing \ Non-staff advertising","01/04/16"
"Wolverhampton City Council","http://opendatacommunities.org/id/metropolitan-district-council/wolverhampton","WWW.BAKERROSS.CO.UK","46.6","Bilston Museum","5970","Materials for resale","01/04/16"
"Wolverhampton City Council","http://opendatacommunities.org/id/metropolitan-district-council/wolverhampton","ROYAL CARPETS","262.5","LAC Transitions Team","5713","Client Allowances","01/04/16"
